Department family,Entity,Date,Expense type,Expense area,Supplier,Transaction number,Amount,VAT registration number
"Department for Science, Innovation and Technology",Intellectual Property Office,07/11/2023,Travel & Subsistence,PDTM Directorate,Personal expenses,OS000000089,566.70,Not Applicable
"Department for Science, Innovation and Technology",Intellectual Property Office,14/11/2023,Travel & Subsistence,"Rights, Policy & Enforcement Directorate",Personal expenses,OS000000100,581.50,Not Applicable
"Department for Science, Innovation and Technology",Intellectual Property Office,08/11/2023,Travel & Subsistence,"Rights, Policy & Enforcement Directorate",Personal expenses,OS000000093,581.81,Not Applicable
"Department for Science, Innovation and Technology",Intellectual Property Office,01/11/2023,Pay Costs,PDTM Directorate,Acorn Recruitment Ltd,1040479,778.33,Not Applicable
"Department for Science, Innovation and Technology",Intellectual Property Office,01/11/2023,Pay Costs,PDTM Directorate,Acorn Recruitment Ltd,1040480,582.74,Not Applicable
"Department for Science, Innovation and Technology",Intellectual Property Office,10/11/2023,Pay Costs,PDTM Directorate,Acorn Recruitment Ltd,1040971,778.33,Not Applicable
"Department for Science, Innovation and Technology",Intellectual Property Office,10/11/2023,Pay Costs,PDTM Directorate,Acorn Recruitment Ltd,1040972,763.24,Not Applicable
"Department for Science, Innovation and Technology",Intellectual Property Office,17/11/2023,Pay Costs,PDTM Directorate,Acorn Recruitment Ltd,1041455,778.33,Not Applicable
"Department for Science, Innovation and Technology",Intellectual Property Office,21/11/2023,Pay Costs,PDTM Directorate,Acorn Recruitment Ltd,1041925,631.08,Not Applicable
"Department for Science, Innovation and Technology",Intellectual Property Office,21/11/2023,Pay Costs,PDTM Directorate,Acorn Recruitment Ltd,1041926,752.93,Not Applicable
"Department for Science, Innovation and Technology",Intellectual Property Office,28/11/2023,Pay Costs,PDTM Directorate,Acorn Recruitment Ltd,1042381,778.33,Not Applicable
"Department for Science, Innovation and Technology",Intellectual Property Office,07/11/2023,Office Supplies,"Rights, Policy & Enforcement Directorate",Banner Group Limited,AB81427A,"2,280.53",Not Applicable
"Department for Science, Innovation and Technology",Intellectual Property Office,24/11/2023,Information Technology,DDaT Directorate,Personal expenses,UK522,"36,036.00",Not Applicable
"Department for Science, Innovation and Technology",Intellectual Property Office,08/11/2023,Office Supplies,PDTM Directorate,British Library,7000463201,"1,738.98",Not Applicable
"Department for Science, Innovation and Technology",Intellectual Property Office,10/11/2023,Miscellaneous Expenses General,"Rights, Policy & Enforcement Directorate",British Standards Institution BSI,96406869,"1,536.00",Not Applicable
"Department for Science, Innovation and Technology",Intellectual Property Office,29/11/2023,Information Technology,DDaT Directorate,British Standards Institution BSI,96423577,"3,820.80",Not Applicable
"Department for Science, Innovation and Technology",Intellectual Property Office,15/11/2023,Staff Costs,"Rights, Policy & Enforcement Directorate",Cabinet Office,3834317,993.30,Not Applicable
"Department for Science, Innovation and Technology",Intellectual Property Office,10/11/2023,Staff Costs,Projects,Cabinet Office,3834394,"7,700.00",Not Applicable
"Department for Science, Innovation and Technology",Intellectual Property Office,14/11/2023,Staff Costs,DDaT Directorate,Cabinet Office,3834574,"2,295.00",Not Applicable
"Department for Science, Innovation and Technology",Intellectual Property Office,08/11/2023,Information Technology,"Rights, Policy & Enforcement Directorate",Capital Law LLP,70012808,"1,667.40",Not Applicable
"Department for Science, Innovation and Technology",Intellectual Property Office,01/11/2023,Staff Costs,"Rights, Policy & Enforcement Directorate",Computeraid Ltd,22873,"2,196.00",Not Applicable
"Department for Science, Innovation and Technology",Intellectual Property Office,07/11/2023,Postage & Delivery Costs,"Rights, Policy & Enforcement Directorate",DHL International (UK) Ltd,BRSR007687631,"5,557.76",Not Applicable
"Department for Science, Innovation and Technology",Intellectual Property Office,15/11/2023,Postage & Delivery Costs,"Rights, Policy & Enforcement Directorate",DHL International (UK) Ltd,BRSR007733913,874.01,Not Applicable
"Department for Science, Innovation and Technology",Intellectual Property Office,24/11/2023,Postage & Delivery Costs,"Rights, Policy & Enforcement Directorate",DHL International (UK) Ltd,BRSR007756183,"1,991.59",Not Applicable
"Department for Science, Innovation and Technology",Intellectual Property Office,10/11/2023,Supporting UK Business,PDTM Directorate,Greaves Brewster LLP,9819440,"2,500.00",Not Applicable
"Department for Science, Innovation and Technology",Intellectual Property Office,28/11/2023,Supporting UK Business,PDTM Directorate,Greaves Brewster LLP,9819854,"2,500.00",Not Applicable
"Department for Science, Innovation and Technology",Intellectual Property Office,10/11/2023,Supporting UK Business,PDTM Directorate,Haseltine Lake,1179411,"2,500.00",Not Applicable
"Department for Science, Innovation and Technology",Intellectual Property Office,08/11/2023,Pay Costs,DDaT Directorate,Hays Specialist Recruitment,1013273954,"4,485.54",Not Applicable
"Department for Science, Innovation and Technology",Intellectual Property Office,13/11/2023,Pay Costs,DDaT Directorate,Hays Specialist Recruitment,1013288444,"4,485.54",Not Applicable
"Department for Science, Innovation and Technology",Intellectual Property Office,22/11/2023,Pay Costs,DDaT Directorate,Hays Specialist Recruitment,1013310210,"4,485.54",Not Applicable
"Department for Science, Innovation and Technology",Intellectual Property Office,21/11/2023,Office Supplies,"Rights, Policy & Enforcement Directorate",Healthy Workstations Ltd,39337,"1,291.00",Not Applicable
"Department for Science, Innovation and Technology",Intellectual Property Office,24/11/2023,Information Technology,DDaT Directorate,HFX Ltd,5642,"44,224.44",Not Applicable
"Department for Science, Innovation and Technology",Intellectual Property Office,17/11/2023,Pay Costs,"Rights, Policy & Enforcement Directorate",Home  Office,2642907,"5,165.93",Not Applicable
"Department for Science, Innovation and Technology",Intellectual Property Office,17/11/2023,Pay Costs,"Rights, Policy & Enforcement Directorate",Home  Office,2642911,"4,661.07",Not Applicable
"Department for Science, Innovation and Technology",Intellectual Property Office,17/11/2023,Pay Costs,"Rights, Policy & Enforcement Directorate",Home  Office,2644465,"5,165.93",Not Applicable
"Department for Science, Innovation and Technology",Intellectual Property Office,17/11/2023,Pay Costs,"Rights, Policy & Enforcement Directorate",Home  Office,2644467,"4,661.07",Not Applicable
"Department for Science, Innovation and Technology",Intellectual Property Office,03/11/2023,Travel & Subsistence,PDTM Directorate,Zenith,327346,953.06,Not Applicable
"Department for Science, Innovation and Technology",Intellectual Property Office,20/11/2023,Postage & Delivery Costs,"Rights, Policy & Enforcement Directorate",Quadient UK Limited,2023051503,"5,261.80",Not Applicable
"Department for Science, Innovation and Technology",Intellectual Property Office,14/11/2023,Postage & Delivery Costs,"Rights, Policy & Enforcement Directorate",Quadient UK Limited,NE9000335-NOV23,"10,000.00",Not Applicable
"Department for Science, Innovation and Technology",Intellectual Property Office,17/11/2023,Information Technology,DDaT Directorate,Phoenix Software Ltd,OP/I988583,"266,679.05",Not Applicable
"Department for Science, Innovation and Technology",Intellectual Property Office,01/11/2023,Supporting UK Business,PDTM Directorate,Potter Clarkson LLP,1037525,"5,000.00",Not Applicable
"Department for Science, Innovation and Technology",Intellectual Property Office,10/11/2023,Supporting UK Business,PDTM Directorate,Potter Clarkson LLP,1038082,"2,500.00",Not Applicable
"Department for Science, Innovation and Technology",Intellectual Property Office,01/11/2023,Postage & Delivery Costs,"Rights, Policy & Enforcement Directorate",Royal Mail,9068811701,"3,548.12",Not Applicable
"Department for Science, Innovation and Technology",Intellectual Property Office,10/11/2023,Postage & Delivery Costs,"Rights, Policy & Enforcement Directorate",Royal Mail,9068877737,"3,239.00",Not Applicable
"Department for Science, Innovation and Technology",Intellectual Property Office,15/11/2023,Postage & Delivery Costs,"Rights, Policy & Enforcement Directorate",Royal Mail,9068938603,"2,948.71",Not Applicable
"Department for Science, Innovation and Technology",Intellectual Property Office,24/11/2023,Postage & Delivery Costs,"Rights, Policy & Enforcement Directorate",Royal Mail,9068990646,"3,058.67",Not Applicable
"Department for Science, Innovation and Technology",Intellectual Property Office,03/11/2023,Information Technology,DDaT Directorate,Specialist Computer Centres Plc,OP/N471152,"3,318.89",Not Applicable
"Department for Science, Innovation and Technology",Intellectual Property Office,03/11/2023,Information Technology,DDaT Directorate,Specialist Computer Centres Plc,OP/N471154,"8,635.00",Not Applicable
"Department for Science, Innovation and Technology",Intellectual Property Office,30/11/2023,Information Technology,DDaT Directorate,Specialist Computer Centres Plc,OP/N485478,"3,318.89",Not Applicable
"Department for Science, Innovation and Technology",Intellectual Property Office,30/11/2023,Information Technology,DDaT Directorate,Specialist Computer Centres Plc,OP/N485479,"8,635.00",Not Applicable
"Department for Science, Innovation and Technology",Intellectual Property Office,17/11/2023,Staff Costs,Strategy Directorate,University of Glasgow,68524,"3,333.00",Not Applicable
"Department for Science, Innovation and Technology",Intellectual Property Office,01/11/2023,Supporting UK Business,PDTM Directorate,Withers &  Rogers LLP,6877797,"2,500.00",Not Applicable
"Department for Science, Innovation and Technology",Intellectual Property Office,14/11/2023,Marketing & Publicity,Strategy Directorate,Aardman Animations Ltd,44920,"1,908.00",Not Applicable
"Department for Science, Innovation and Technology",Intellectual Property Office,03/11/2023,Office Supplies,"Rights, Policy & Enforcement Directorate",Antalis UK Ltd,6700279107,"4,777.03",Not Applicable
"Department for Science, Innovation and Technology",Intellectual Property Office,10/11/2023,Information Technology,DDaT Directorate,Computacenter (UK) ltd,3884281399,"72,723.50",Not Applicable
"Department for Science, Innovation and Technology",Intellectual Property Office,17/11/2023,Information Technology,DDaT Directorate,Computacenter (UK) ltd,3884281401,"114,493.32",Not Applicable
"Department for Science, Innovation and Technology",Intellectual Property Office,14/11/2023,Supporting UK Business,PDTM Directorate,Lincoln IP,17432,"2,500.00",Not Applicable
"Department for Science, Innovation and Technology",Intellectual Property Office,01/11/2023,Supporting UK Business,PDTM Directorate,Marks & Clerk LLP,5338580,"5,000.00",Not Applicable
"Department for Science, Innovation and Technology",Intellectual Property Office,15/11/2023,Supporting UK Business,PDTM Directorate,Marks & Clerk LLP,5341025,"5,000.00",Not Applicable
"Department for Science, Innovation and Technology",Intellectual Property Office,29/11/2023,Supporting UK Business,PDTM Directorate,Marks & Clerk LLP,7170729,"2,500.00",Not Applicable
"Department for Science, Innovation and Technology",Intellectual Property Office,29/11/2023,Supporting UK Business,PDTM Directorate,Marks & Clerk LLP,7170731,"2,500.00",Not Applicable
"Department for Science, Innovation and Technology",Intellectual Property Office,07/11/2023,Supporting UK Business,PDTM Directorate,Mewburn  Ellis LLP,298023,"4,999.99",Not Applicable
"Department for Science, Innovation and Technology",Intellectual Property Office,03/11/2023,Supporting UK Business,PDTM Directorate,Swindell & Pearson Ltd,SIN129067,"2,500.00",Not Applicable
"Department for Science, Innovation and Technology",Intellectual Property Office,17/11/2023,Supporting UK Business,PDTM Directorate,Swindell & Pearson Ltd,SIN129428,"2,500.00",Not Applicable
"Department for Science, Innovation and Technology",Intellectual Property Office,07/11/2023,Telecoms,DDaT Directorate,Vodafone Corporate Ltd,104833917,"2,701.21",Not Applicable
"Department for Science, Innovation and Technology",Intellectual Property Office,17/11/2023,Supporting UK Business,Business & International Policy Directorate,Foreign & Commonwealth and Development O,20011348,"32,185.37",Not Applicable
"Department for Science, Innovation and Technology",Intellectual Property Office,24/11/2023,Supporting UK Business,Business & International Policy Directorate,Foreign & Commonwealth and Development O,20011600,"1,020.89",Not Applicable
"Department for Science, Innovation and Technology",Intellectual Property Office,24/11/2023,Supporting UK Business,Business & International Policy Directorate,Foreign & Commonwealth and Development O,20011640,"56,045.45",Not Applicable
"Department for Science, Innovation and Technology",Intellectual Property Office,30/11/2023,Supporting UK Business,Business & International Policy Directorate,Foreign & Commonwealth and Development O,20011803,"21,764.19",Not Applicable
"Department for Science, Innovation and Technology",Intellectual Property Office,29/11/2023,Computer Contracts,Strategy Directorate,HM TREASURY,46059,"63,600.00",Not Applicable
"Department for Science, Innovation and Technology",Intellectual Property Office,24/11/2023,Information Technology,DDaT Directorate,Advanced 365 Limited,INV-157546,"28,980.00",Not Applicable
"Department for Science, Innovation and Technology",Intellectual Property Office,07/11/2023,Postage & Delivery Costs,"Rights, Policy & Enforcement Directorate",RICO LOGISTICS LTD,SINRLLFS00442170,"1,428.94",Not Applicable
"Department for Science, Innovation and Technology",Intellectual Property Office,07/11/2023,Postage & Delivery Costs,"Rights, Policy & Enforcement Directorate",RICO LOGISTICS LTD,SINRLLFS00443138,"1,657.43",Not Applicable
"Department for Science, Innovation and Technology",Intellectual Property Office,14/11/2023,Postage & Delivery Costs,"Rights, Policy & Enforcement Directorate",RICO LOGISTICS LTD,SINRLLFS00443885,859.04,Not Applicable
"Department for Science, Innovation and Technology",Intellectual Property Office,27/11/2023,Postage & Delivery Costs,"Rights, Policy & Enforcement Directorate",RICO LOGISTICS LTD,SINRLLFS00445191,"1,173.70",Not Applicable
"Department for Science, Innovation and Technology",Intellectual Property Office,28/11/2023,Postage & Delivery Costs,"Rights, Policy & Enforcement Directorate",RICO LOGISTICS LTD,SINRLLFS00446043,733.22,Not Applicable
"Department for Science, Innovation and Technology",Intellectual Property Office,10/11/2023,Telecoms,DDaT Directorate,VIRGIN MEDIA,917218NOV23,577.32,Not Applicable
"Department for Science, Innovation and Technology",Intellectual Property Office,01/11/2023,Information Technology,DDaT Directorate,Open Connections Solutions Limited,340168,"3,240.00",Not Applicable
"Department for Science, Innovation and Technology",Intellectual Property Office,01/11/2023,Information Technology,DDaT Directorate,Open Connections Solutions Limited,340184,"2,700.00",Not Applicable
"Department for Science, Innovation and Technology",Intellectual Property Office,20/11/2023,Information Technology,DDaT Directorate,Open Connections Solutions Limited,340194,"6,480.00",Not Applicable
"Department for Science, Innovation and Technology",Intellectual Property Office,20/11/2023,Information Technology,DDaT Directorate,Open Connections Solutions Limited,340201,"1,080.00",Not Applicable
"Department for Science, Innovation and Technology",Intellectual Property Office,22/11/2023,Supporting UK Business,PDTM Directorate,LAWRIE INTELLECTUAL PROPERTY,126189,"4,998.00",Not Applicable
"Department for Science, Innovation and Technology",Intellectual Property Office,17/11/2023,Supporting UK Business,PDTM Directorate,LAWRIE INTELLECTUAL PROPERTY,127399,"2,500.00",Not Applicable
"Department for Science, Innovation and Technology",Intellectual Property Office,17/11/2023,Supporting UK Business,PDTM Directorate,STEPHENS SCOWN LLP,217566,"2,500.00",Not Applicable
"Department for Science, Innovation and Technology",Intellectual Property Office,29/11/2023,Supporting UK Business,PDTM Directorate,CAMERON INTELLECTUAL PROPERTY LTD,9180-23,"2,500.00",Not Applicable
"Department for Science, Innovation and Technology",Intellectual Property Office,13/11/2023,Accommodation,"Rights, Policy & Enforcement Directorate",EDF ENERGY,16763465,"34,403.33",Not Applicable
"Department for Science, Innovation and Technology",Intellectual Property Office,13/11/2023,Accommodation,"Rights, Policy & Enforcement Directorate",EDF ENERGY,17063207,"1,651.14",Not Applicable
"Department for Science, Innovation and Technology",Intellectual Property Office,13/11/2023,Accommodation,"Rights, Policy & Enforcement Directorate",EDF ENERGY,17143984,"2,044.99",Not Applicable
"Department for Science, Innovation and Technology",Intellectual Property Office,13/11/2023,Accommodation,"Rights, Policy & Enforcement Directorate",EDF ENERGY,17151129,"35,822.90",Not Applicable
"Department for Science, Innovation and Technology",Intellectual Property Office,08/11/2023,Information Technology,DDaT Directorate,Bytes Software Services Ltd,1195379,"8,193.29",Not Applicable
"Department for Science, Innovation and Technology",Intellectual Property Office,24/11/2023,Information Technology,DDaT Directorate,Bytes Software Services Ltd,1196318,"1,739.65",Not Applicable
"Department for Science, Innovation and Technology",Intellectual Property Office,28/11/2023,Miscellaneous Expenses General,"Rights, Policy & Enforcement Directorate",Thomas Carroll Management Services Ltd,528399065,558.00,Not Applicable
"Department for Science, Innovation and Technology",Intellectual Property Office,20/11/2023,Pay Costs,"Rights, Policy & Enforcement Directorate",Police & Crime Commissioner Sussex,1800052536,"5,478.37",Not Applicable
"Department for Science, Innovation and Technology",Intellectual Property Office,22/11/2023,Staff Costs,"Rights, Policy & Enforcement Directorate",Pluxee UK Ltd,3896323,"2,308.37",Not Applicable
"Department for Science, Innovation and Technology",Intellectual Property Office,22/11/2023,Staff Costs,"Rights, Policy & Enforcement Directorate",Pluxee UK Ltd,3903293,"2,166.69",Not Applicable
"Department for Science, Innovation and Technology",Intellectual Property Office,24/11/2023,Telecoms,DDaT Directorate,EE Ltd,1288052260,850.89,Not Applicable
"Department for Science, Innovation and Technology",Intellectual Property Office,24/11/2023,Supporting UK Business,PDTM Directorate,Lean IP Ltd,INV2552,"2,500.00",Not Applicable
"Department for Science, Innovation and Technology",Intellectual Property Office,20/11/2023,Legal & Hearings,PDTM Directorate,Government Legal Department,531696,"8,099.52",Not Applicable
"Department for Science, Innovation and Technology",Intellectual Property Office,07/11/2023,Legal & Hearings,PDTM Directorate,Government Legal Department,531836,"5,628.48",Not Applicable
"Department for Science, Innovation and Technology",Intellectual Property Office,07/11/2023,Legal & Hearings,PDTM Directorate,Government Legal Department,534256,"8,275.20",Not Applicable
"Department for Science, Innovation and Technology",Intellectual Property Office,28/11/2023,Legal & Hearings,PDTM Directorate,Government Legal Department,535446,"5,237.00",Not Applicable
"Department for Science, Innovation and Technology",Intellectual Property Office,28/11/2023,Legal & Hearings,PDTM Directorate,Government Legal Department,536114,"1,504.08",Not Applicable
"Department for Science, Innovation and Technology",Intellectual Property Office,15/11/2023,Telecoms,DDaT Directorate,Personal expenses,UK10/092023/3768,"2,238.11",Not Applicable
"Department for Science, Innovation and Technology",Intellectual Property Office,15/11/2023,Telecoms,DDaT Directorate,Personal expenses,UK10/112023/8598,"2,238.11",Not Applicable
"Department for Science, Innovation and Technology",Intellectual Property Office,17/11/2023,Supporting UK Business,PDTM Directorate,Murgitroyd & Company Ltd,089799-23,"3,084.00",Not Applicable
"Department for Science, Innovation and Technology",Intellectual Property Office,03/11/2023,Supporting UK Business,PDTM Directorate,Murgitroyd & Company Ltd,091195M-23,"2,500.00",Not Applicable
"Department for Science, Innovation and Technology",Intellectual Property Office,17/11/2023,Staff Costs,"Rights, Policy & Enforcement Directorate",The Clive Davis Partnership Ltd.,CDSC/3819,"1,200.00",Not Applicable
"Department for Science, Innovation and Technology",Intellectual Property Office,17/11/2023,Staff Costs,"Rights, Policy & Enforcement Directorate",The Clive Davis Partnership Ltd.,CDSC/3820,"1,200.00",Not Applicable
"Department for Science, Innovation and Technology",Intellectual Property Office,16/11/2023,Miscellaneous Expenses General,PDTM Directorate,European Patent Office,40312072,"55,737.01",Not Applicable
"Department for Science, Innovation and Technology",Intellectual Property Office,29/11/2023,Information Technology,PDTM Directorate,European Patent Office,40312088,"149,394.88",Not Applicable
"Department for Science, Innovation and Technology",Intellectual Property Office,29/11/2023,Information Technology,PDTM Directorate,The Royal Society of Chemistry,INV-030275,"24,030.00",Not Applicable
"Department for Science, Innovation and Technology",Intellectual Property Office,07/11/2023,Miscellaneous Expenses General,"Rights, Policy & Enforcement Directorate",Insight Health Screening Limited,SIN-03380,"6,146.48",Not Applicable
"Department for Science, Innovation and Technology",Intellectual Property Office,08/11/2023,Miscellaneous Expenses General,"Rights, Policy & Enforcement Directorate",Insight Health Screening Limited,SIN-03607,"3,605.00",Not Applicable
"Department for Science, Innovation and Technology",Intellectual Property Office,10/11/2023,Miscellaneous Expenses General,"Rights, Policy & Enforcement Directorate",Insight Health Screening Limited,SIN-03731,"6,091.24",Not Applicable
"Department for Science, Innovation and Technology",Intellectual Property Office,22/11/2023,Staff Costs,PDTM Directorate,Chartered Institute of Patent Atto,101256,"1,770.00",Not Applicable
"Department for Science, Innovation and Technology",Intellectual Property Office,03/11/2023,Supporting UK Business,PDTM Directorate,Scintilla,INV-04179,"4,980.00",Not Applicable
"Department for Science, Innovation and Technology",Intellectual Property Office,29/11/2023,Office Supplies,PDTM Directorate,Elsevier BV,M619897,"1,023.06",Not Applicable
"Department for Science, Innovation and Technology",Intellectual Property Office,29/11/2023,Information Technology,PDTM Directorate,Elsevier BV,SD620097,"22,440.78",Not Applicable
"Department for Science, Innovation and Technology",Intellectual Property Office,01/11/2023,Staff Costs,PDTM Directorate,Crackergroup Limited,IPO/4661/12,"7,200.00",Not Applicable
"Department for Science, Innovation and Technology",Intellectual Property Office,13/11/2023,Information Technology,PDTM Directorate,Questback UK Ltd,4410105,"5,658.41",Not Applicable
"Department for Science, Innovation and Technology",Intellectual Property Office,29/11/2023,Information Technology,DDaT Directorate,Ingram Publishing,213774,"1,866.00",Not Applicable
"Department for Science, Innovation and Technology",Intellectual Property Office,03/11/2023,Supporting UK Business,PDTM Directorate,Forresters clear direction,KBO-5895785,"2,500.00",Not Applicable
"Department for Science, Innovation and Technology",Intellectual Property Office,17/11/2023,Supporting UK Business,PDTM Directorate,Ashfords LLP,826262,"2,500.00",Not Applicable
"Department for Science, Innovation and Technology",Intellectual Property Office,29/11/2023,Supporting UK Business,PDTM Directorate,Appleyard Lees,169082,"2,500.00",Not Applicable
"Department for Science, Innovation and Technology",Intellectual Property Office,01/11/2023,Supporting UK Business,PDTM Directorate,Albright ip,162151,"2,500.00",Not Applicable
"Department for Science, Innovation and Technology",Intellectual Property Office,17/11/2023,Staff Costs,"Rights, Policy & Enforcement Directorate",Ernst & Young LLP,GB01G000471543,"4,736.47",Not Applicable
"Department for Science, Innovation and Technology",Intellectual Property Office,17/11/2023,Staff Costs,"Rights, Policy & Enforcement Directorate",Ernst & Young LLP,GB01G000471545,"1,421.64",Not Applicable
"Department for Science, Innovation and Technology",Intellectual Property Office,03/11/2023,Staff Costs,"Rights, Policy & Enforcement Directorate",Ernst & Young LLP,GB01G000472657,"2,799.60",Not Applicable
"Department for Science, Innovation and Technology",Intellectual Property Office,24/11/2023,Staff Costs,Projects,KPMG LLP (CSL),5502733096,"1,300.80",Not Applicable
"Department for Science, Innovation and Technology",Intellectual Property Office,24/11/2023,Staff Costs,Projects,KPMG LLP (CSL),5502738145,"1,300.80",Not Applicable
"Department for Science, Innovation and Technology",Intellectual Property Office,10/11/2023,Staff Costs,"Rights, Policy & Enforcement Directorate",Korn Ferry UK limited,1195089408,"5,989.55",Not Applicable
"Department for Science, Innovation and Technology",Intellectual Property Office,29/11/2023,Information Technology,DDaT Directorate,Akhter Computers Ltd,SI0079781,"14,926.46",Not Applicable
"Department for Science, Innovation and Technology",Intellectual Property Office,08/11/2023,Information Technology,DDaT Directorate,Equal Experts UK Ltd,INV-13527,"15,000.00",Not Applicable
"Department for Science, Innovation and Technology",Intellectual Property Office,03/11/2023,Supporting UK Business,PDTM Directorate,IP21 LTD,31124,"2,500.00",Not Applicable
"Department for Science, Innovation and Technology",Intellectual Property Office,28/11/2023,Supporting UK Business,PDTM Directorate,IP21 LTD,31232,"2,500.00",Not Applicable
"Department for Science, Innovation and Technology",Intellectual Property Office,01/11/2023,Accommodation,"Rights, Policy & Enforcement Directorate",Shred It Limited,9506090886,"1,195.82",Not Applicable
"Department for Science, Innovation and Technology",Intellectual Property Office,24/11/2023,Supporting UK Business,PDTM Directorate,Mathys & Squire IP,488370,"2,500.00",Not Applicable
"Department for Science, Innovation and Technology",Intellectual Property Office,24/11/2023,Miscellaneous Expenses General,"Rights, Policy & Enforcement Directorate",Vinci Construction UK Ltd,23100490,223.20,Not Applicable
"Department for Science, Innovation and Technology",Intellectual Property Office,24/11/2023,Miscellaneous Expenses General,PDTM Directorate,Vinci Construction UK Ltd,23100490,45.60,Not Applicable
"Department for Science, Innovation and Technology",Intellectual Property Office,24/11/2023,Miscellaneous Expenses General,"Rights, Policy & Enforcement Directorate",Vinci Construction UK Ltd,23100490,905.76,Not Applicable
"Department for Science, Innovation and Technology",Intellectual Property Office,24/11/2023,Miscellaneous Expenses General,PDTM Directorate,Vinci Construction UK Ltd,23100490,223.68,Not Applicable
"Department for Science, Innovation and Technology",Intellectual Property Office,24/11/2023,Miscellaneous Expenses General,PDTM Directorate,Vinci Construction UK Ltd,23100490,402.48,Not Applicable
"Department for Science, Innovation and Technology",Intellectual Property Office,24/11/2023,Miscellaneous Expenses General,"Rights, Policy & Enforcement Directorate",Vinci Construction UK Ltd,23100490,374.16,Not Applicable
"Department for Science, Innovation and Technology",Intellectual Property Office,24/11/2023,Miscellaneous Expenses General,"Rights, Policy & Enforcement Directorate",Vinci Construction UK Ltd,23100490,19.80,Not Applicable
"Department for Science, Innovation and Technology",Intellectual Property Office,24/11/2023,Miscellaneous Expenses General,PDTM Directorate,Vinci Construction UK Ltd,23100490,400.74,Not Applicable
"Department for Science, Innovation and Technology",Intellectual Property Office,24/11/2023,Miscellaneous Expenses General,Strategy Directorate,Vinci Construction UK Ltd,23100490,166.08,Not Applicable
"Department for Science, Innovation and Technology",Intellectual Property Office,30/11/2023,Staff Costs,"Rights, Policy & Enforcement Directorate",Vinci Construction UK Ltd,23111322,"1,001.70",Not Applicable
"Department for Science, Innovation and Technology",Intellectual Property Office,30/11/2023,Miscellaneous Expenses General,Strategy Directorate,Vinci Construction UK Ltd,23111322,124.56,Not Applicable
"Department for Science, Innovation and Technology",Intellectual Property Office,30/11/2023,Miscellaneous Expenses General,"Rights, Policy & Enforcement Directorate",Vinci Construction UK Ltd,23111322,76.50,Not Applicable
"Department for Science, Innovation and Technology",Intellectual Property Office,30/11/2023,Miscellaneous Expenses General,PDTM Directorate,Vinci Construction UK Ltd,23111322,425.34,Not Applicable
"Department for Science, Innovation and Technology",Intellectual Property Office,17/11/2023,Supporting UK Business,PDTM Directorate,AA Thornton IP LLP,192805,"5,000.00",Not Applicable
"Department for Science, Innovation and Technology",Intellectual Property Office,29/11/2023,Supporting UK Business,PDTM Directorate,AA Thornton IP LLP,192918,"2,500.00",Not Applicable
"Department for Science, Innovation and Technology",Intellectual Property Office,13/11/2023,Information Technology,DDaT Directorate,8X8 Solutions,4153812,"2,745.26",Not Applicable
"Department for Science, Innovation and Technology",Intellectual Property Office,22/11/2023,Supporting UK Business,PDTM Directorate,HGF Limited,768284,"5,000.00",Not Applicable
"Department for Science, Innovation and Technology",Intellectual Property Office,14/11/2023,Supporting UK Business,PDTM Directorate,HGF Limited,769429,"5,000.00",Not Applicable
"Department for Science, Innovation and Technology",Intellectual Property Office,17/11/2023,Supporting UK Business,PDTM Directorate,HGF Limited,769859,"2,500.00",Not Applicable
"Department for Science, Innovation and Technology",Intellectual Property Office,29/11/2023,Supporting UK Business,PDTM Directorate,HGF Limited,771011,"2,499.98",Not Applicable
"Department for Science, Innovation and Technology",Intellectual Property Office,03/11/2023,Miscellaneous Expenses General,"Rights, Policy & Enforcement Directorate",Towers Watson Limited,2.50141E+11,"3,045.60",Not Applicable
"Department for Science, Innovation and Technology",Intellectual Property Office,15/11/2023,Staff Costs,"Rights, Policy & Enforcement Directorate",People Untapped Limited,INV-2336,"2,760.00",Not Applicable
"Department for Science, Innovation and Technology",Intellectual Property Office,03/11/2023,Staff Costs,Strategy Directorate,The Chartered Institute of Marketing,20388797,"3,662.56",Not Applicable
"Department for Science, Innovation and Technology",Intellectual Property Office,03/11/2023,Staff Costs,"Rights, Policy & Enforcement Directorate",The Chartered Institute of Marketing,20388797,"2,280.00",Not Applicable
"Department for Science, Innovation and Technology",Intellectual Property Office,24/11/2023,Supporting UK Business,PDTM Directorate,Barker Brettell LLP,489900,"2,500.00",Not Applicable
"Department for Science, Innovation and Technology",Intellectual Property Office,29/11/2023,Information Technology,DDaT Directorate,BrowserStack Inc,INV01716768,"17,452.98",Not Applicable
"Department for Science, Innovation and Technology",Intellectual Property Office,29/11/2023,Staff Costs,"Rights, Policy & Enforcement Directorate",Tracy Mountain,101,900.00,Not Applicable
"Department for Science, Innovation and Technology",Intellectual Property Office,27/11/2023,Information Technology,Projects,Deloitte LLP,8004162912,"41,988.68",Not Applicable
"Department for Science, Innovation and Technology",Intellectual Property Office,27/11/2023,Information Technology,Projects,Deloitte LLP,8004162913,"102,704.40",Not Applicable
"Department for Science, Innovation and Technology",Intellectual Property Office,27/11/2023,Information Technology,Projects,Deloitte LLP,8004162914,651.11,Not Applicable
"Department for Science, Innovation and Technology",Intellectual Property Office,27/11/2023,Information Technology,DDaT Directorate,Deloitte LLP,8004162915,"41,610.00",Not Applicable
"Department for Science, Innovation and Technology",Intellectual Property Office,27/11/2023,Information Technology,DDaT Directorate,Deloitte LLP,8004162916,"146,480.40",Not Applicable
"Department for Science, Innovation and Technology",Intellectual Property Office,01/11/2023,Supporting UK Business,PDTM Directorate,Sirius IP,102023IAUUKT01,"2,500.00",Not Applicable
"Department for Science, Innovation and Technology",Intellectual Property Office,08/11/2023,Pay Costs,PDTM Directorate,Alexander Mann Solutions Limited,2900978,"1,045.43",Not Applicable
"Department for Science, Innovation and Technology",Intellectual Property Office,01/11/2023,Pay Costs,PDTM Directorate,Alexander Mann Solutions Limited,2909880,577.33,Not Applicable
"Department for Science, Innovation and Technology",Intellectual Property Office,01/11/2023,Pay Costs,DDaT Directorate,Alexander Mann Solutions Limited,2909881,"6,048.60",Not Applicable
"Department for Science, Innovation and Technology",Intellectual Property Office,01/11/2023,Pay Costs,DDaT Directorate,Alexander Mann Solutions Limited,2909882,"3,276.29",Not Applicable
"Department for Science, Innovation and Technology",Intellectual Property Office,01/11/2023,Pay Costs,PDTM Directorate,Alexander Mann Solutions Limited,2909883,736.60,Not Applicable
"Department for Science, Innovation and Technology",Intellectual Property Office,01/11/2023,Pay Costs,PDTM Directorate,Alexander Mann Solutions Limited,2909884,736.60,Not Applicable
"Department for Science, Innovation and Technology",Intellectual Property Office,01/11/2023,Pay Costs,PDTM Directorate,Alexander Mann Solutions Limited,2909885,736.60,Not Applicable
"Department for Science, Innovation and Technology",Intellectual Property Office,01/11/2023,Pay Costs,DDaT Directorate,Alexander Mann Solutions Limited,2909886,"4,003.56",Not Applicable
"Department for Science, Innovation and Technology",Intellectual Property Office,01/11/2023,Pay Costs,DDaT Directorate,Alexander Mann Solutions Limited,2909887,"3,465.30",Not Applicable
"Department for Science, Innovation and Technology",Intellectual Property Office,01/11/2023,Pay Costs,PDTM Directorate,Alexander Mann Solutions Limited,2909888,736.60,Not Applicable
"Department for Science, Innovation and Technology",Intellectual Property Office,01/11/2023,Pay Costs,PDTM Directorate,Alexander Mann Solutions Limited,2909889,"1,194.48",Not Applicable
"Department for Science, Innovation and Technology",Intellectual Property Office,01/11/2023,Pay Costs,PDTM Directorate,Alexander Mann Solutions Limited,2909890,685.98,Not Applicable
"Department for Science, Innovation and Technology",Intellectual Property Office,01/11/2023,Pay Costs,PDTM Directorate,Alexander Mann Solutions Limited,2909891,597.24,Not Applicable
"Department for Science, Innovation and Technology",Intellectual Property Office,01/11/2023,Pay Costs,PDTM Directorate,Alexander Mann Solutions Limited,2909892,726.65,Not Applicable
"Department for Science, Innovation and Technology",Intellectual Property Office,01/11/2023,Pay Costs,PDTM Directorate,Alexander Mann Solutions Limited,2909893,736.60,Not Applicable
"Department for Science, Innovation and Technology",Intellectual Property Office,01/11/2023,Pay Costs,PDTM Directorate,Alexander Mann Solutions Limited,2909894,736.60,Not Applicable
"Department for Science, Innovation and Technology",Intellectual Property Office,01/11/2023,Pay Costs,PDTM Directorate,Alexander Mann Solutions Limited,2909895,676.87,Not Applicable
"Department for Science, Innovation and Technology",Intellectual Property Office,01/11/2023,Pay Costs,PDTM Directorate,Alexander Mann Solutions Limited,2909898,685.98,Not Applicable
"Department for Science, Innovation and Technology",Intellectual Property Office,01/11/2023,Pay Costs,PDTM Directorate,Alexander Mann Solutions Limited,2909900,736.60,Not Applicable
"Department for Science, Innovation and Technology",Intellectual Property Office,01/11/2023,Pay Costs,PDTM Directorate,Alexander Mann Solutions Limited,2909901,685.98,Not Applicable
"Department for Science, Innovation and Technology",Intellectual Property Office,01/11/2023,Pay Costs,PDTM Directorate,Alexander Mann Solutions Limited,2909902,531.36,Not Applicable
"Department for Science, Innovation and Technology",Intellectual Property Office,01/11/2023,Pay Costs,PDTM Directorate,Alexander Mann Solutions Limited,2909904,736.60,Not Applicable
"Department for Science, Innovation and Technology",Intellectual Property Office,01/11/2023,Pay Costs,PDTM Directorate,Alexander Mann Solutions Limited,2909905,736.60,Not Applicable
"Department for Science, Innovation and Technology",Intellectual Property Office,01/11/2023,Pay Costs,PDTM Directorate,Alexander Mann Solutions Limited,2909906,685.98,Not Applicable
"Department for Science, Innovation and Technology",Intellectual Property Office,01/11/2023,Pay Costs,DDaT Directorate,Alexander Mann Solutions Limited,2909907,"3,695.58",Not Applicable
"Department for Science, Innovation and Technology",Intellectual Property Office,01/11/2023,Pay Costs,PDTM Directorate,Alexander Mann Solutions Limited,2909908,736.60,Not Applicable
"Department for Science, Innovation and Technology",Intellectual Property Office,01/11/2023,Pay Costs,PDTM Directorate,Alexander Mann Solutions Limited,2909909,736.60,Not Applicable
"Department for Science, Innovation and Technology",Intellectual Property Office,01/11/2023,Pay Costs,PDTM Directorate,Alexander Mann Solutions Limited,2909910,736.60,Not Applicable
"Department for Science, Innovation and Technology",Intellectual Property Office,01/11/2023,Pay Costs,DDaT Directorate,Alexander Mann Solutions Limited,2909911,"5,453.94",Not Applicable
"Department for Science, Innovation and Technology",Intellectual Property Office,01/11/2023,Pay Costs,Projects,Alexander Mann Solutions Limited,2909912,"4,003.56",Not Applicable
"Department for Science, Innovation and Technology",Intellectual Property Office,01/11/2023,Pay Costs,PDTM Directorate,Alexander Mann Solutions Limited,2909913,"1,551.74",Not Applicable
"Department for Science, Innovation and Technology",Intellectual Property Office,01/11/2023,Pay Costs,PDTM Directorate,Alexander Mann Solutions Limited,2909914,685.98,Not Applicable
"Department for Science, Innovation and Technology",Intellectual Property Office,01/11/2023,Pay Costs,DDaT Directorate,Alexander Mann Solutions Limited,2909915,"4,619.52",Not Applicable
"Department for Science, Innovation and Technology",Intellectual Property Office,01/11/2023,Pay Costs,PDTM Directorate,Alexander Mann Solutions Limited,2909916,736.60,Not Applicable
"Department for Science, Innovation and Technology",Intellectual Property Office,01/11/2023,Pay Costs,PDTM Directorate,Alexander Mann Solutions Limited,2909917,655.34,Not Applicable
"Department for Science, Innovation and Technology",Intellectual Property Office,01/11/2023,Pay Costs,PDTM Directorate,Alexander Mann Solutions Limited,2909918,736.60,Not Applicable
"Department for Science, Innovation and Technology",Intellectual Property Office,01/11/2023,Pay Costs,PDTM Directorate,Alexander Mann Solutions Limited,2909919,736.60,Not Applicable
"Department for Science, Innovation and Technology",Intellectual Property Office,01/11/2023,Pay Costs,PDTM Directorate,Alexander Mann Solutions Limited,2909920,587.29,Not Applicable
"Department for Science, Innovation and Technology",Intellectual Property Office,01/11/2023,Pay Costs,PDTM Directorate,Alexander Mann Solutions Limited,2909922,736.60,Not Applicable
"Department for Science, Innovation and Technology",Intellectual Property Office,01/11/2023,Pay Costs,PDTM Directorate,Alexander Mann Solutions Limited,2909923,655.34,Not Applicable
"Department for Science, Innovation and Technology",Intellectual Property Office,01/11/2023,Pay Costs,DDaT Directorate,Alexander Mann Solutions Limited,2909924,"4,410.42",Not Applicable
"Department for Science, Innovation and Technology",Intellectual Property Office,01/11/2023,Pay Costs,PDTM Directorate,Alexander Mann Solutions Limited,2909925,736.60,Not Applicable
"Department for Science, Innovation and Technology",Intellectual Property Office,01/11/2023,Pay Costs,DDaT Directorate,Alexander Mann Solutions Limited,2909926,"2,710.08",Not Applicable
"Department for Science, Innovation and Technology",Intellectual Property Office,01/11/2023,Pay Costs,PDTM Directorate,Alexander Mann Solutions Limited,2909927,685.98,Not Applicable
"Department for Science, Innovation and Technology",Intellectual Property Office,01/11/2023,Pay Costs,PDTM Directorate,Alexander Mann Solutions Limited,2909928,685.98,Not Applicable
"Department for Science, Innovation and Technology",Intellectual Property Office,01/11/2023,Pay Costs,DDaT Directorate,Alexander Mann Solutions Limited,2909929,"2,440.62",Not Applicable
"Department for Science, Innovation and Technology",Intellectual Property Office,01/11/2023,Pay Costs,DDaT Directorate,Alexander Mann Solutions Limited,2909930,"3,913.56",Not Applicable
"Department for Science, Innovation and Technology",Intellectual Property Office,01/11/2023,Pay Costs,DDaT Directorate,Alexander Mann Solutions Limited,2909931,"5,040.48",Not Applicable
"Department for Science, Innovation and Technology",Intellectual Property Office,01/11/2023,Pay Costs,Finance Directorate,Alexander Mann Solutions Limited,2909932,547.48,Not Applicable
"Department for Science, Innovation and Technology",Intellectual Property Office,01/11/2023,Pay Costs,Finance Directorate,Alexander Mann Solutions Limited,2909933,736.60,Not Applicable
"Department for Science, Innovation and Technology",Intellectual Property Office,01/11/2023,Pay Costs,DDaT Directorate,Alexander Mann Solutions Limited,2909934,"3,276.29",Not Applicable
"Department for Science, Innovation and Technology",Intellectual Property Office,01/11/2023,Pay Costs,Projects,Alexander Mann Solutions Limited,2909936,"4,725.42",Not Applicable
"Department for Science, Innovation and Technology",Intellectual Property Office,01/11/2023,Pay Costs,PDTM Directorate,Alexander Mann Solutions Limited,2909937,736.60,Not Applicable
"Department for Science, Innovation and Technology",Intellectual Property Office,01/11/2023,Pay Costs,Projects,Alexander Mann Solutions Limited,2909938,"3,350.64",Not Applicable
"Department for Science, Innovation and Technology",Intellectual Property Office,01/11/2023,Pay Costs,Projects,Alexander Mann Solutions Limited,2909939,"2,999.70",Not Applicable
"Department for Science, Innovation and Technology",Intellectual Property Office,01/11/2023,Pay Costs,Projects,Alexander Mann Solutions Limited,2909940,"4,090.44",Not Applicable
"Department for Science, Innovation and Technology",Intellectual Property Office,01/11/2023,Pay Costs,Projects,Alexander Mann Solutions Limited,2909941,"4,410.42",Not Applicable
"Department for Science, Innovation and Technology",Intellectual Property Office,01/11/2023,Pay Costs,PDTM Directorate,Alexander Mann Solutions Limited,2909942,736.60,Not Applicable
"Department for Science, Innovation and Technology",Intellectual Property Office,01/11/2023,Pay Costs,PDTM Directorate,Alexander Mann Solutions Limited,2909943,736.60,Not Applicable
"Department for Science, Innovation and Technology",Intellectual Property Office,01/11/2023,Pay Costs,PDTM Directorate,Alexander Mann Solutions Limited,2909944,736.60,Not Applicable
"Department for Science, Innovation and Technology",Intellectual Property Office,01/11/2023,Pay Costs,PDTM Directorate,Alexander Mann Solutions Limited,2909945,736.60,Not Applicable
"Department for Science, Innovation and Technology",Intellectual Property Office,01/11/2023,Pay Costs,DDaT Directorate,Alexander Mann Solutions Limited,2909946,"4,158.36",Not Applicable
"Department for Science, Innovation and Technology",Intellectual Property Office,01/11/2023,Pay Costs,Projects,Alexander Mann Solutions Limited,2909947,"6,898.46",Not Applicable
"Department for Science, Innovation and Technology",Intellectual Property Office,01/11/2023,Pay Costs,PDTM Directorate,Alexander Mann Solutions Limited,2909948,736.60,Not Applicable
"Department for Science, Innovation and Technology",Intellectual Property Office,01/11/2023,Pay Costs,PDTM Directorate,Alexander Mann Solutions Limited,2909949,716.69,Not Applicable
"Department for Science, Innovation and Technology",Intellectual Property Office,01/11/2023,Pay Costs,PDTM Directorate,Alexander Mann Solutions Limited,2909950,"1,473.19",Not Applicable
"Department for Science, Innovation and Technology",Intellectual Property Office,08/11/2023,Pay Costs,PDTM Directorate,Alexander Mann Solutions Limited,2914185,736.60,Not Applicable
"Department for Science, Innovation and Technology",Intellectual Property Office,08/11/2023,Pay Costs,Projects,Alexander Mann Solutions Limited,2914186,"1,760.30",Not Applicable
"Department for Science, Innovation and Technology",Intellectual Property Office,08/11/2023,Pay Costs,DDaT Directorate,Alexander Mann Solutions Limited,2914187,"3,024.30",Not Applicable
"Department for Science, Innovation and Technology",Intellectual Property Office,08/11/2023,Pay Costs,DDaT Directorate,Alexander Mann Solutions Limited,2914188,"4,095.36",Not Applicable
"Department for Science, Innovation and Technology",Intellectual Property Office,08/11/2023,Pay Costs,PDTM Directorate,Alexander Mann Solutions Limited,2914189,736.60,Not Applicable
"Department for Science, Innovation and Technology",Intellectual Property Office,08/11/2023,Pay Costs,PDTM Directorate,Alexander Mann Solutions Limited,2914190,736.60,Not Applicable
"Department for Science, Innovation and Technology",Intellectual Property Office,08/11/2023,Pay Costs,PDTM Directorate,Alexander Mann Solutions Limited,2914191,736.60,Not Applicable
"Department for Science, Innovation and Technology",Intellectual Property Office,08/11/2023,Pay Costs,DDaT Directorate,Alexander Mann Solutions Limited,2914192,"3,465.30",Not Applicable
"Department for Science, Innovation and Technology",Intellectual Property Office,08/11/2023,Pay Costs,DDaT Directorate,Alexander Mann Solutions Limited,2914193,"8,862.72",Not Applicable
"Department for Science, Innovation and Technology",Intellectual Property Office,08/11/2023,Pay Costs,PDTM Directorate,Alexander Mann Solutions Limited,2914194,736.60,Not Applicable
"Department for Science, Innovation and Technology",Intellectual Property Office,08/11/2023,Pay Costs,PDTM Directorate,Alexander Mann Solutions Limited,2914195,685.98,Not Applicable
"Department for Science, Innovation and Technology",Intellectual Property Office,08/11/2023,Pay Costs,PDTM Directorate,Alexander Mann Solutions Limited,2914196,597.24,Not Applicable
"Department for Science, Innovation and Technology",Intellectual Property Office,08/11/2023,Pay Costs,PDTM Directorate,Alexander Mann Solutions Limited,2914197,726.65,Not Applicable
"Department for Science, Innovation and Technology",Intellectual Property Office,08/11/2023,Pay Costs,PDTM Directorate,Alexander Mann Solutions Limited,2914198,736.60,Not Applicable
"Department for Science, Innovation and Technology",Intellectual Property Office,08/11/2023,Pay Costs,PDTM Directorate,Alexander Mann Solutions Limited,2914199,736.60,Not Applicable
"Department for Science, Innovation and Technology",Intellectual Property Office,08/11/2023,Pay Costs,PDTM Directorate,Alexander Mann Solutions Limited,2914200,691.80,Not Applicable
"Department for Science, Innovation and Technology",Intellectual Property Office,08/11/2023,Pay Costs,PDTM Directorate,Alexander Mann Solutions Limited,2914201,736.60,Not Applicable
"Department for Science, Innovation and Technology",Intellectual Property Office,08/11/2023,Pay Costs,PDTM Directorate,Alexander Mann Solutions Limited,2914203,"1,214.68",Not Applicable
"Department for Science, Innovation and Technology",Intellectual Property Office,13/11/2023,Pay Costs,PDTM Directorate,Alexander Mann Solutions Limited,2914204,547.48,Not Applicable
"Department for Science, Innovation and Technology",Intellectual Property Office,08/11/2023,Pay Costs,PDTM Directorate,Alexander Mann Solutions Limited,2914205,736.60,Not Applicable
"Department for Science, Innovation and Technology",Intellectual Property Office,08/11/2023,Pay Costs,PDTM Directorate,Alexander Mann Solutions Limited,2914206,"1,259.48",Not Applicable
"Department for Science, Innovation and Technology",Intellectual Property Office,08/11/2023,Pay Costs,PDTM Directorate,Alexander Mann Solutions Limited,2914208,522.50,Not Applicable
"Department for Science, Innovation and Technology",Intellectual Property Office,08/11/2023,Pay Costs,PDTM Directorate,Alexander Mann Solutions Limited,2914209,"3,533.68",Not Applicable
"Department for Science, Innovation and Technology",Intellectual Property Office,07/11/2023,Pay Costs,PDTM Directorate,Alexander Mann Solutions Limited,2914211,"4,614.59",Not Applicable
"Department for Science, Innovation and Technology",Intellectual Property Office,08/11/2023,Pay Costs,PDTM Directorate,Alexander Mann Solutions Limited,2914212,736.60,Not Applicable
"Department for Science, Innovation and Technology",Intellectual Property Office,08/11/2023,Pay Costs,PDTM Directorate,Alexander Mann Solutions Limited,2914213,736.60,Not Applicable
"Department for Science, Innovation and Technology",Intellectual Property Office,08/11/2023,Pay Costs,PDTM Directorate,Alexander Mann Solutions Limited,2914214,"1,008.58",Not Applicable
"Department for Science, Innovation and Technology",Intellectual Property Office,08/11/2023,Pay Costs,DDaT Directorate,Alexander Mann Solutions Limited,2914215,"3,695.58",Not Applicable
"Department for Science, Innovation and Technology",Intellectual Property Office,08/11/2023,Pay Costs,DDaT Directorate,Alexander Mann Solutions Limited,2914216,"8,505.72",Not Applicable
"Department for Science, Innovation and Technology",Intellectual Property Office,08/11/2023,Pay Costs,PDTM Directorate,Alexander Mann Solutions Limited,2914217,597.24,Not Applicable
"Department for Science, Innovation and Technology",Intellectual Property Office,08/11/2023,Pay Costs,PDTM Directorate,Alexander Mann Solutions Limited,2914218,592.26,Not Applicable
"Department for Science, Innovation and Technology",Intellectual Property Office,08/11/2023,Pay Costs,PDTM Directorate,Alexander Mann Solutions Limited,2914219,736.60,Not Applicable
"Department for Science, Innovation and Technology",Intellectual Property Office,08/11/2023,Pay Costs,PDTM Directorate,Alexander Mann Solutions Limited,2914220,631.00,Not Applicable
"Department for Science, Innovation and Technology",Intellectual Property Office,13/11/2023,Pay Costs,PDTM Directorate,Alexander Mann Solutions Limited,2914221,"1,259.48",Not Applicable
"Department for Science, Innovation and Technology",Intellectual Property Office,08/11/2023,Pay Costs,DDaT Directorate,Alexander Mann Solutions Limited,2914222,"4,619.52",Not Applicable
"Department for Science, Innovation and Technology",Intellectual Property Office,08/11/2023,Pay Costs,PDTM Directorate,Alexander Mann Solutions Limited,2914223,"1,400.18",Not Applicable
"Department for Science, Innovation and Technology",Intellectual Property Office,08/11/2023,Pay Costs,PDTM Directorate,Alexander Mann Solutions Limited,2914224,655.34,Not Applicable
"Department for Science, Innovation and Technology",Intellectual Property Office,08/11/2023,Pay Costs,PDTM Directorate,Alexander Mann Solutions Limited,2914225,676.87,Not Applicable
"Department for Science, Innovation and Technology",Intellectual Property Office,08/11/2023,Pay Costs,PDTM Directorate,Alexander Mann Solutions Limited,2914226,736.60,Not Applicable
"Department for Science, Innovation and Technology",Intellectual Property Office,08/11/2023,Pay Costs,PDTM Directorate,Alexander Mann Solutions Limited,2914227,736.60,Not Applicable
"Department for Science, Innovation and Technology",Intellectual Property Office,08/11/2023,Pay Costs,PDTM Directorate,Alexander Mann Solutions Limited,2914229,736.60,Not Applicable
"Department for Science, Innovation and Technology",Intellectual Property Office,08/11/2023,Pay Costs,PDTM Directorate,Alexander Mann Solutions Limited,2914230,655.34,Not Applicable
"Department for Science, Innovation and Technology",Intellectual Property Office,08/11/2023,Pay Costs,DDaT Directorate,Alexander Mann Solutions Limited,2914231,"2,646.25",Not Applicable
"Department for Science, Innovation and Technology",Intellectual Property Office,08/11/2023,Pay Costs,PDTM Directorate,Alexander Mann Solutions Limited,2914232,736.60,Not Applicable
"Department for Science, Innovation and Technology",Intellectual Property Office,08/11/2023,Pay Costs,DDaT Directorate,Alexander Mann Solutions Limited,2914233,"2,710.08",Not Applicable
"Department for Science, Innovation and Technology",Intellectual Property Office,07/11/2023,Pay Costs,DDaT Directorate,Alexander Mann Solutions Limited,2914234,"6,432.24",Not Applicable
"Department for Science, Innovation and Technology",Intellectual Property Office,08/11/2023,Pay Costs,PDTM Directorate,Alexander Mann Solutions Limited,2914235,685.98,Not Applicable
"Department for Science, Innovation and Technology",Intellectual Property Office,08/11/2023,Pay Costs,PDTM Directorate,Alexander Mann Solutions Limited,2914236,"1,116.11",Not Applicable
"Department for Science, Innovation and Technology",Intellectual Property Office,08/11/2023,Pay Costs,DDaT Directorate,Alexander Mann Solutions Limited,2914237,"2,440.62",Not Applicable
"Department for Science, Innovation and Technology",Intellectual Property Office,08/11/2023,Pay Costs,DDaT Directorate,Alexander Mann Solutions Limited,2914238,"2,795.40",Not Applicable
"Department for Science, Innovation and Technology",Intellectual Property Office,07/11/2023,Pay Costs,PDTM Directorate,Alexander Mann Solutions Limited,2914239,"3,707.87",Not Applicable
"Department for Science, Innovation and Technology",Intellectual Property Office,08/11/2023,Pay Costs,DDaT Directorate,Alexander Mann Solutions Limited,2914240,"5,040.48",Not Applicable
"Department for Science, Innovation and Technology",Intellectual Property Office,08/11/2023,Pay Costs,Finance Directorate,Alexander Mann Solutions Limited,2914241,676.87,Not Applicable
"Department for Science, Innovation and Technology",Intellectual Property Office,08/11/2023,Pay Costs,Finance Directorate,Alexander Mann Solutions Limited,2914242,736.60,Not Applicable
"Department for Science, Innovation and Technology",Intellectual Property Office,08/11/2023,Pay Costs,"Rights, Policy & Enforcement Directorate",Alexander Mann Solutions Limited,2914243,736.60,Not Applicable
"Department for Science, Innovation and Technology",Intellectual Property Office,08/11/2023,Pay Costs,Projects,Alexander Mann Solutions Limited,2914244,"4,725.42",Not Applicable
"Department for Science, Innovation and Technology",Intellectual Property Office,08/11/2023,Pay Costs,PDTM Directorate,Alexander Mann Solutions Limited,2914245,736.60,Not Applicable
"Department for Science, Innovation and Technology",Intellectual Property Office,08/11/2023,Pay Costs,Projects,Alexander Mann Solutions Limited,2914246,"3,350.64",Not Applicable
"Department for Science, Innovation and Technology",Intellectual Property Office,08/11/2023,Pay Costs,Projects,Alexander Mann Solutions Limited,2914247,"2,699.74",Not Applicable
"Department for Science, Innovation and Technology",Intellectual Property Office,08/11/2023,Pay Costs,Projects,Alexander Mann Solutions Limited,2914248,"4,090.44",Not Applicable
"Department for Science, Innovation and Technology",Intellectual Property Office,08/11/2023,Pay Costs,Projects,Alexander Mann Solutions Limited,2914249,"4,410.42",Not Applicable
"Department for Science, Innovation and Technology",Intellectual Property Office,08/11/2023,Pay Costs,Projects,Alexander Mann Solutions Limited,2914250,"4,003.56",Not Applicable
"Department for Science, Innovation and Technology",Intellectual Property Office,08/11/2023,Pay Costs,PDTM Directorate,Alexander Mann Solutions Limited,2914251,736.60,Not Applicable
"Department for Science, Innovation and Technology",Intellectual Property Office,08/11/2023,Pay Costs,PDTM Directorate,Alexander Mann Solutions Limited,2914252,736.60,Not Applicable
"Department for Science, Innovation and Technology",Intellectual Property Office,08/11/2023,Pay Costs,PDTM Directorate,Alexander Mann Solutions Limited,2914253,736.60,Not Applicable
"Department for Science, Innovation and Technology",Intellectual Property Office,08/11/2023,Pay Costs,PDTM Directorate,Alexander Mann Solutions Limited,2914254,736.60,Not Applicable
"Department for Science, Innovation and Technology",Intellectual Property Office,08/11/2023,Pay Costs,DDaT Directorate,Alexander Mann Solutions Limited,2914255,"4,158.36",Not Applicable
"Department for Science, Innovation and Technology",Intellectual Property Office,08/11/2023,Pay Costs,Projects,Alexander Mann Solutions Limited,2914256,"4,311.54",Not Applicable
"Department for Science, Innovation and Technology",Intellectual Property Office,08/11/2023,Pay Costs,PDTM Directorate,Alexander Mann Solutions Limited,2914257,736.60,Not Applicable
"Department for Science, Innovation and Technology",Intellectual Property Office,08/11/2023,Pay Costs,PDTM Directorate,Alexander Mann Solutions Limited,2914258,716.69,Not Applicable
"Department for Science, Innovation and Technology",Intellectual Property Office,15/11/2023,Pay Costs,Projects,Alexander Mann Solutions Limited,2918635,"1,005.89",Not Applicable
"Department for Science, Innovation and Technology",Intellectual Property Office,15/11/2023,Pay Costs,DDaT Directorate,Alexander Mann Solutions Limited,2918636,"12,286.08",Not Applicable
"Department for Science, Innovation and Technology",Intellectual Property Office,15/11/2023,Pay Costs,DDaT Directorate,Alexander Mann Solutions Limited,2918637,"3,024.30",Not Applicable
"Department for Science, Innovation and Technology",Intellectual Property Office,15/11/2023,Pay Costs,PDTM Directorate,Alexander Mann Solutions Limited,2918638,736.60,Not Applicable
"Department for Science, Innovation and Technology",Intellectual Property Office,15/11/2023,Pay Costs,PDTM Directorate,Alexander Mann Solutions Limited,2918639,736.60,Not Applicable
"Department for Science, Innovation and Technology",Intellectual Property Office,15/11/2023,Pay Costs,PDTM Directorate,Alexander Mann Solutions Limited,2918640,736.60,Not Applicable
"Department for Science, Innovation and Technology",Intellectual Property Office,15/11/2023,Pay Costs,DDaT Directorate,Alexander Mann Solutions Limited,2918641,"4,003.56",Not Applicable
"Department for Science, Innovation and Technology",Intellectual Property Office,15/11/2023,Pay Costs,DDaT Directorate,Alexander Mann Solutions Limited,2918642,"3,465.30",Not Applicable
"Department for Science, Innovation and Technology",Intellectual Property Office,15/11/2023,Pay Costs,DDaT Directorate,Alexander Mann Solutions Limited,2918643,"4,431.36",Not Applicable
"Department for Science, Innovation and Technology",Intellectual Property Office,15/11/2023,Pay Costs,PDTM Directorate,Alexander Mann Solutions Limited,2918646,685.98,Not Applicable
"Department for Science, Innovation and Technology",Intellectual Property Office,15/11/2023,Pay Costs,PDTM Directorate,Alexander Mann Solutions Limited,2918647,597.24,Not Applicable
"Department for Science, Innovation and Technology",Intellectual Property Office,15/11/2023,Pay Costs,PDTM Directorate,Alexander Mann Solutions Limited,2918648,726.65,Not Applicable
"Department for Science, Innovation and Technology",Intellectual Property Office,15/11/2023,Pay Costs,PDTM Directorate,Alexander Mann Solutions Limited,2918649,736.60,Not Applicable
"Department for Science, Innovation and Technology",Intellectual Property Office,15/11/2023,Pay Costs,PDTM Directorate,Alexander Mann Solutions Limited,2918650,597.24,Not Applicable
"Department for Science, Innovation and Technology",Intellectual Property Office,15/11/2023,Pay Costs,PDTM Directorate,Alexander Mann Solutions Limited,2918651,696.78,Not Applicable
"Department for Science, Innovation and Technology",Intellectual Property Office,15/11/2023,Pay Costs,PDTM Directorate,Alexander Mann Solutions Limited,2918652,736.60,Not Applicable
"Department for Science, Innovation and Technology",Intellectual Property Office,15/11/2023,Pay Costs,PDTM Directorate,Alexander Mann Solutions Limited,2918653,736.60,Not Applicable
"Department for Science, Innovation and Technology",Intellectual Property Office,15/11/2023,Pay Costs,PDTM Directorate,Alexander Mann Solutions Limited,2918654,685.98,Not Applicable
"Department for Science, Innovation and Technology",Intellectual Property Office,13/11/2023,Pay Costs,PDTM Directorate,Alexander Mann Solutions Limited,2918655,905.82,Not Applicable
"Department for Science, Innovation and Technology",Intellectual Property Office,15/11/2023,Pay Costs,PDTM Directorate,Alexander Mann Solutions Limited,2918656,736.60,Not Applicable
"Department for Science, Innovation and Technology",Intellectual Property Office,15/11/2023,Pay Costs,PDTM Directorate,Alexander Mann Solutions Limited,2918657,685.98,Not Applicable
"Department for Science, Innovation and Technology",Intellectual Property Office,15/11/2023,Pay Costs,PDTM Directorate,Alexander Mann Solutions Limited,2918658,597.24,Not Applicable
"Department for Science, Innovation and Technology",Intellectual Property Office,15/11/2023,Pay Costs,PDTM Directorate,Alexander Mann Solutions Limited,2918659,522.50,Not Applicable
"Department for Science, Innovation and Technology",Intellectual Property Office,15/11/2023,Pay Costs,PDTM Directorate,Alexander Mann Solutions Limited,2918660,736.60,Not Applicable
"Department for Science, Innovation and Technology",Intellectual Property Office,15/11/2023,Pay Costs,PDTM Directorate,Alexander Mann Solutions Limited,2918662,"1,084.03",Not Applicable
"Department for Science, Innovation and Technology",Intellectual Property Office,15/11/2023,Pay Costs,PDTM Directorate,Alexander Mann Solutions Limited,2918663,736.60,Not Applicable
"Department for Science, Innovation and Technology",Intellectual Property Office,15/11/2023,Pay Costs,DDaT Directorate,Alexander Mann Solutions Limited,2918664,"3,695.58",Not Applicable
"Department for Science, Innovation and Technology",Intellectual Property Office,15/11/2023,Pay Costs,DDaT Directorate,Alexander Mann Solutions Limited,2918665,"4,252.86",Not Applicable
"Department for Science, Innovation and Technology",Intellectual Property Office,15/11/2023,Pay Costs,PDTM Directorate,Alexander Mann Solutions Limited,2918667,736.60,Not Applicable
"Department for Science, Innovation and Technology",Intellectual Property Office,15/11/2023,Pay Costs,PDTM Directorate,Alexander Mann Solutions Limited,2918669,587.29,Not Applicable
"Department for Science, Innovation and Technology",Intellectual Property Office,15/11/2023,Pay Costs,DDaT Directorate,Alexander Mann Solutions Limited,2918670,"4,619.52",Not Applicable
"Department for Science, Innovation and Technology",Intellectual Property Office,15/11/2023,Pay Costs,PDTM Directorate,Alexander Mann Solutions Limited,2918671,736.60,Not Applicable
"Department for Science, Innovation and Technology",Intellectual Property Office,15/11/2023,Pay Costs,PDTM Directorate,Alexander Mann Solutions Limited,2918672,736.60,Not Applicable
"Department for Science, Innovation and Technology",Intellectual Property Office,15/11/2023,Pay Costs,PDTM Directorate,Alexander Mann Solutions Limited,2918673,655.34,Not Applicable
"Department for Science, Innovation and Technology",Intellectual Property Office,15/11/2023,Pay Costs,PDTM Directorate,Alexander Mann Solutions Limited,2918674,736.60,Not Applicable
"Department for Science, Innovation and Technology",Intellectual Property Office,15/11/2023,Pay Costs,PDTM Directorate,Alexander Mann Solutions Limited,2918675,736.60,Not Applicable
"Department for Science, Innovation and Technology",Intellectual Property Office,15/11/2023,Pay Costs,PDTM Directorate,Alexander Mann Solutions Limited,2918676,736.60,Not Applicable
"Department for Science, Innovation and Technology",Intellectual Property Office,15/11/2023,Pay Costs,PDTM Directorate,Alexander Mann Solutions Limited,2918678,736.60,Not Applicable
"Department for Science, Innovation and Technology",Intellectual Property Office,15/11/2023,Pay Costs,PDTM Directorate,Alexander Mann Solutions Limited,2918679,655.34,Not Applicable
"Department for Science, Innovation and Technology",Intellectual Property Office,15/11/2023,Pay Costs,DDaT Directorate,Alexander Mann Solutions Limited,2918680,"4,410.42",Not Applicable
"Department for Science, Innovation and Technology",Intellectual Property Office,15/11/2023,Pay Costs,PDTM Directorate,Alexander Mann Solutions Limited,2918681,736.60,Not Applicable
"Department for Science, Innovation and Technology",Intellectual Property Office,15/11/2023,Pay Costs,DDaT Directorate,Alexander Mann Solutions Limited,2918682,"2,710.08",Not Applicable
"Department for Science, Innovation and Technology",Intellectual Property Office,15/11/2023,Pay Costs,DDaT Directorate,Alexander Mann Solutions Limited,2918683,"3,216.12",Not Applicable
"Department for Science, Innovation and Technology",Intellectual Property Office,15/11/2023,Pay Costs,PDTM Directorate,Alexander Mann Solutions Limited,2918684,685.98,Not Applicable
"Department for Science, Innovation and Technology",Intellectual Property Office,15/11/2023,Pay Costs,PDTM Directorate,Alexander Mann Solutions Limited,2918685,546.94,Not Applicable
"Department for Science, Innovation and Technology",Intellectual Property Office,15/11/2023,Pay Costs,DDaT Directorate,Alexander Mann Solutions Limited,2918686,"2,440.62",Not Applicable
"Department for Science, Innovation and Technology",Intellectual Property Office,15/11/2023,Pay Costs,DDaT Directorate,Alexander Mann Solutions Limited,2918687,"2,795.40",Not Applicable
"Department for Science, Innovation and Technology",Intellectual Property Office,15/11/2023,Pay Costs,PDTM Directorate,Alexander Mann Solutions Limited,2918688,736.60,Not Applicable
"Department for Science, Innovation and Technology",Intellectual Property Office,15/11/2023,Pay Costs,Finance Directorate,Alexander Mann Solutions Limited,2918689,736.60,Not Applicable
"Department for Science, Innovation and Technology",Intellectual Property Office,15/11/2023,Pay Costs,DDaT Directorate,Alexander Mann Solutions Limited,2918690,"8,190.72",Not Applicable
"Department for Science, Innovation and Technology",Intellectual Property Office,15/11/2023,Pay Costs,"Rights, Policy & Enforcement Directorate",Alexander Mann Solutions Limited,2918691,736.60,Not Applicable
"Department for Science, Innovation and Technology",Intellectual Property Office,15/11/2023,Pay Costs,Projects,Alexander Mann Solutions Limited,2918692,"4,725.42",Not Applicable
"Department for Science, Innovation and Technology",Intellectual Property Office,15/11/2023,Pay Costs,PDTM Directorate,Alexander Mann Solutions Limited,2918693,736.60,Not Applicable
"Department for Science, Innovation and Technology",Intellectual Property Office,15/11/2023,Pay Costs,Projects,Alexander Mann Solutions Limited,2918694,"2,680.51",Not Applicable
"Department for Science, Innovation and Technology",Intellectual Property Office,15/11/2023,Pay Costs,Projects,Alexander Mann Solutions Limited,2918695,"2,999.70",Not Applicable
"Department for Science, Innovation and Technology",Intellectual Property Office,15/11/2023,Pay Costs,Projects,Alexander Mann Solutions Limited,2918696,"4,090.44",Not Applicable
"Department for Science, Innovation and Technology",Intellectual Property Office,15/11/2023,Pay Costs,Projects,Alexander Mann Solutions Limited,2918697,"4,410.42",Not Applicable
"Department for Science, Innovation and Technology",Intellectual Property Office,15/11/2023,Pay Costs,Projects,Alexander Mann Solutions Limited,2918698,"4,003.56",Not Applicable
"Department for Science, Innovation and Technology",Intellectual Property Office,17/11/2023,Pay Costs,DDaT Directorate,Alexander Mann Solutions Limited,2918699,"10,907.88",Not Applicable
"Department for Science, Innovation and Technology",Intellectual Property Office,15/11/2023,Pay Costs,PDTM Directorate,Alexander Mann Solutions Limited,2918700,736.60,Not Applicable
"Department for Science, Innovation and Technology",Intellectual Property Office,15/11/2023,Pay Costs,PDTM Directorate,Alexander Mann Solutions Limited,2918701,696.78,Not Applicable
"Department for Science, Innovation and Technology",Intellectual Property Office,15/11/2023,Pay Costs,PDTM Directorate,Alexander Mann Solutions Limited,2918702,696.78,Not Applicable
"Department for Science, Innovation and Technology",Intellectual Property Office,15/11/2023,Pay Costs,PDTM Directorate,Alexander Mann Solutions Limited,2918703,736.60,Not Applicable
"Department for Science, Innovation and Technology",Intellectual Property Office,15/11/2023,Pay Costs,DDaT Directorate,Alexander Mann Solutions Limited,2918704,"4,158.36",Not Applicable
"Department for Science, Innovation and Technology",Intellectual Property Office,15/11/2023,Pay Costs,DDaT Directorate,Alexander Mann Solutions Limited,2918705,"8,931.00",Not Applicable
"Department for Science, Innovation and Technology",Intellectual Property Office,15/11/2023,Pay Costs,PDTM Directorate,Alexander Mann Solutions Limited,2918706,736.60,Not Applicable
"Department for Science, Innovation and Technology",Intellectual Property Office,15/11/2023,Pay Costs,PDTM Directorate,Alexander Mann Solutions Limited,2918707,736.60,Not Applicable
"Department for Science, Innovation and Technology",Intellectual Property Office,15/11/2023,Pay Costs,"Rights, Policy & Enforcement Directorate",Alexander Mann Solutions Limited,2918708,"1,028.76",Not Applicable
"Department for Science, Innovation and Technology",Intellectual Property Office,15/11/2023,Pay Costs,PDTM Directorate,Alexander Mann Solutions Limited,2918710,567.38,Not Applicable
"Department for Science, Innovation and Technology",Intellectual Property Office,15/11/2023,Pay Costs,PDTM Directorate,Alexander Mann Solutions Limited,2918711,736.60,Not Applicable
"Department for Science, Innovation and Technology",Intellectual Property Office,17/11/2023,Pay Costs,"Rights, Policy & Enforcement Directorate",Alexander Mann Solutions Limited,2918712,695.26,Not Applicable
"Department for Science, Innovation and Technology",Intellectual Property Office,22/11/2023,Pay Costs,Projects,Alexander Mann Solutions Limited,2923036,754.42,Not Applicable
"Department for Science, Innovation and Technology",Intellectual Property Office,22/11/2023,Pay Costs,DDaT Directorate,Alexander Mann Solutions Limited,2923037,"3,276.29",Not Applicable
"Department for Science, Innovation and Technology",Intellectual Property Office,22/11/2023,Pay Costs,DDaT Directorate,Alexander Mann Solutions Limited,2923038,"3,024.30",Not Applicable
"Department for Science, Innovation and Technology",Intellectual Property Office,22/11/2023,Pay Costs,DDaT Directorate,Alexander Mann Solutions Limited,2923039,"4,095.36",Not Applicable
"Department for Science, Innovation and Technology",Intellectual Property Office,22/11/2023,Pay Costs,PDTM Directorate,Alexander Mann Solutions Limited,2923040,736.60,Not Applicable
"Department for Science, Innovation and Technology",Intellectual Property Office,22/11/2023,Pay Costs,PDTM Directorate,Alexander Mann Solutions Limited,2923041,656.96,Not Applicable
"Department for Science, Innovation and Technology",Intellectual Property Office,22/11/2023,Pay Costs,PDTM Directorate,Alexander Mann Solutions Limited,2923042,736.60,Not Applicable
"Department for Science, Innovation and Technology",Intellectual Property Office,22/11/2023,Pay Costs,DDaT Directorate,Alexander Mann Solutions Limited,2923043,"4,003.56",Not Applicable
"Department for Science, Innovation and Technology",Intellectual Property Office,22/11/2023,Pay Costs,DDaT Directorate,Alexander Mann Solutions Limited,2923044,"3,465.30",Not Applicable
"Department for Science, Innovation and Technology",Intellectual Property Office,22/11/2023,Pay Costs,DDaT Directorate,Alexander Mann Solutions Limited,2923045,"4,431.36",Not Applicable
"Department for Science, Innovation and Technology",Intellectual Property Office,22/11/2023,Pay Costs,PDTM Directorate,Alexander Mann Solutions Limited,2923046,736.60,Not Applicable
"Department for Science, Innovation and Technology",Intellectual Property Office,22/11/2023,Pay Costs,PDTM Directorate,Alexander Mann Solutions Limited,2923047,736.60,Not Applicable
"Department for Science, Innovation and Technology",Intellectual Property Office,22/11/2023,Pay Costs,PDTM Directorate,Alexander Mann Solutions Limited,2923050,736.60,Not Applicable
"Department for Science, Innovation and Technology",Intellectual Property Office,22/11/2023,Pay Costs,PDTM Directorate,Alexander Mann Solutions Limited,2923051,617.15,Not Applicable
"Department for Science, Innovation and Technology",Intellectual Property Office,22/11/2023,Pay Costs,PDTM Directorate,Alexander Mann Solutions Limited,2923052,691.80,Not Applicable
"Department for Science, Innovation and Technology",Intellectual Property Office,22/11/2023,Pay Costs,PDTM Directorate,Alexander Mann Solutions Limited,2923053,736.60,Not Applicable
"Department for Science, Innovation and Technology",Intellectual Property Office,22/11/2023,Pay Costs,PDTM Directorate,Alexander Mann Solutions Limited,2923054,736.60,Not Applicable
"Department for Science, Innovation and Technology",Intellectual Property Office,22/11/2023,Pay Costs,PDTM Directorate,Alexander Mann Solutions Limited,2923055,"1,187.80",Not Applicable
"Department for Science, Innovation and Technology",Intellectual Property Office,22/11/2023,Pay Costs,PDTM Directorate,Alexander Mann Solutions Limited,2923057,736.60,Not Applicable
"Department for Science, Innovation and Technology",Intellectual Property Office,22/11/2023,Pay Costs,PDTM Directorate,Alexander Mann Solutions Limited,2923058,"1,259.48",Not Applicable
"Department for Science, Innovation and Technology",Intellectual Property Office,22/11/2023,Pay Costs,PDTM Directorate,Alexander Mann Solutions Limited,2923059,597.24,Not Applicable
"Department for Science, Innovation and Technology",Intellectual Property Office,22/11/2023,Pay Costs,PDTM Directorate,Alexander Mann Solutions Limited,2923060,655.34,Not Applicable
"Department for Science, Innovation and Technology",Intellectual Property Office,22/11/2023,Pay Costs,PDTM Directorate,Alexander Mann Solutions Limited,2923061,736.60,Not Applicable
"Department for Science, Innovation and Technology",Intellectual Property Office,22/11/2023,Pay Costs,PDTM Directorate,Alexander Mann Solutions Limited,2923063,736.60,Not Applicable
"Department for Science, Innovation and Technology",Intellectual Property Office,22/11/2023,Pay Costs,PDTM Directorate,Alexander Mann Solutions Limited,2923064,736.60,Not Applicable
"Department for Science, Innovation and Technology",Intellectual Property Office,22/11/2023,Pay Costs,PDTM Directorate,Alexander Mann Solutions Limited,2923065,587.29,Not Applicable
"Department for Science, Innovation and Technology",Intellectual Property Office,22/11/2023,Pay Costs,PDTM Directorate,Alexander Mann Solutions Limited,2923066,736.60,Not Applicable
"Department for Science, Innovation and Technology",Intellectual Property Office,22/11/2023,Pay Costs,PDTM Directorate,Alexander Mann Solutions Limited,2923067,685.98,Not Applicable
"Department for Science, Innovation and Technology",Intellectual Property Office,22/11/2023,Pay Costs,DDaT Directorate,Alexander Mann Solutions Limited,2923068,"4,252.86",Not Applicable
"Department for Science, Innovation and Technology",Intellectual Property Office,22/11/2023,Pay Costs,PDTM Directorate,Alexander Mann Solutions Limited,2923070,736.60,Not Applicable
"Department for Science, Innovation and Technology",Intellectual Property Office,22/11/2023,Pay Costs,PDTM Directorate,Alexander Mann Solutions Limited,2923071,736.60,Not Applicable
"Department for Science, Innovation and Technology",Intellectual Property Office,22/11/2023,Pay Costs,DDaT Directorate,Alexander Mann Solutions Limited,2923072,"3,695.62",Not Applicable
"Department for Science, Innovation and Technology",Intellectual Property Office,22/11/2023,Pay Costs,PDTM Directorate,Alexander Mann Solutions Limited,2923073,736.60,Not Applicable
"Department for Science, Innovation and Technology",Intellectual Property Office,22/11/2023,Pay Costs,PDTM Directorate,Alexander Mann Solutions Limited,2923074,587.29,Not Applicable
"Department for Science, Innovation and Technology",Intellectual Property Office,22/11/2023,Pay Costs,PDTM Directorate,Alexander Mann Solutions Limited,2923075,655.34,Not Applicable
"Department for Science, Innovation and Technology",Intellectual Property Office,22/11/2023,Pay Costs,PDTM Directorate,Alexander Mann Solutions Limited,2923076,656.96,Not Applicable
"Department for Science, Innovation and Technology",Intellectual Property Office,22/11/2023,Pay Costs,PDTM Directorate,Alexander Mann Solutions Limited,2923077,627.11,Not Applicable
"Department for Science, Innovation and Technology",Intellectual Property Office,22/11/2023,Pay Costs,PDTM Directorate,Alexander Mann Solutions Limited,2923078,736.60,Not Applicable
"Department for Science, Innovation and Technology",Intellectual Property Office,22/11/2023,Pay Costs,PDTM Directorate,Alexander Mann Solutions Limited,2923080,736.60,Not Applicable
"Department for Science, Innovation and Technology",Intellectual Property Office,22/11/2023,Pay Costs,PDTM Directorate,Alexander Mann Solutions Limited,2923081,655.34,Not Applicable
"Department for Science, Innovation and Technology",Intellectual Property Office,22/11/2023,Pay Costs,DDaT Directorate,Alexander Mann Solutions Limited,2923082,"4,410.42",Not Applicable
"Department for Science, Innovation and Technology",Intellectual Property Office,22/11/2023,Pay Costs,PDTM Directorate,Alexander Mann Solutions Limited,2923083,736.60,Not Applicable
"Department for Science, Innovation and Technology",Intellectual Property Office,22/11/2023,Pay Costs,DDaT Directorate,Alexander Mann Solutions Limited,2923084,"2,710.08",Not Applicable
"Department for Science, Innovation and Technology",Intellectual Property Office,22/11/2023,Pay Costs,DDaT Directorate,Alexander Mann Solutions Limited,2923085,"3,216.12",Not Applicable
"Department for Science, Innovation and Technology",Intellectual Property Office,22/11/2023,Pay Costs,PDTM Directorate,Alexander Mann Solutions Limited,2923086,685.98,Not Applicable
"Department for Science, Innovation and Technology",Intellectual Property Office,22/11/2023,Pay Costs,PDTM Directorate,Alexander Mann Solutions Limited,2923087,"1,420.17",Not Applicable
"Department for Science, Innovation and Technology",Intellectual Property Office,22/11/2023,Pay Costs,DDaT Directorate,Alexander Mann Solutions Limited,2923088,"2,440.62",Not Applicable
"Department for Science, Innovation and Technology",Intellectual Property Office,22/11/2023,Pay Costs,DDaT Directorate,Alexander Mann Solutions Limited,2923089,"2,795.40",Not Applicable
"Department for Science, Innovation and Technology",Intellectual Property Office,22/11/2023,Pay Costs,PDTM Directorate,Alexander Mann Solutions Limited,2923090,736.60,Not Applicable
"Department for Science, Innovation and Technology",Intellectual Property Office,22/11/2023,Pay Costs,Finance Directorate,Alexander Mann Solutions Limited,2923091,736.60,Not Applicable
"Department for Science, Innovation and Technology",Intellectual Property Office,22/11/2023,Pay Costs,DDaT Directorate,Alexander Mann Solutions Limited,2923092,"4,095.36",Not Applicable
"Department for Science, Innovation and Technology",Intellectual Property Office,22/11/2023,Pay Costs,Projects,Alexander Mann Solutions Limited,2923093,"4,725.42",Not Applicable
"Department for Science, Innovation and Technology",Intellectual Property Office,22/11/2023,Pay Costs,Projects,Alexander Mann Solutions Limited,2923094,"3,350.64",Not Applicable
"Department for Science, Innovation and Technology",Intellectual Property Office,22/11/2023,Pay Costs,Projects,Alexander Mann Solutions Limited,2923095,"2,999.70",Not Applicable
"Department for Science, Innovation and Technology",Intellectual Property Office,22/11/2023,Pay Costs,Projects,Alexander Mann Solutions Limited,2923096,"4,090.44",Not Applicable
"Department for Science, Innovation and Technology",Intellectual Property Office,22/11/2023,Pay Costs,Projects,Alexander Mann Solutions Limited,2923097,"4,410.42",Not Applicable
"Department for Science, Innovation and Technology",Intellectual Property Office,22/11/2023,Pay Costs,Projects,Alexander Mann Solutions Limited,2923098,"4,003.56",Not Applicable
"Department for Science, Innovation and Technology",Intellectual Property Office,22/11/2023,Pay Costs,DDaT Directorate,Alexander Mann Solutions Limited,2923099,"5,453.94",Not Applicable
"Department for Science, Innovation and Technology",Intellectual Property Office,22/11/2023,Pay Costs,PDTM Directorate,Alexander Mann Solutions Limited,2923100,736.60,Not Applicable
"Department for Science, Innovation and Technology",Intellectual Property Office,22/11/2023,Pay Costs,PDTM Directorate,Alexander Mann Solutions Limited,2923101,617.15,Not Applicable
"Department for Science, Innovation and Technology",Intellectual Property Office,22/11/2023,Pay Costs,PDTM Directorate,Alexander Mann Solutions Limited,2923102,696.78,Not Applicable
"Department for Science, Innovation and Technology",Intellectual Property Office,22/11/2023,Pay Costs,PDTM Directorate,Alexander Mann Solutions Limited,2923103,736.60,Not Applicable
"Department for Science, Innovation and Technology",Intellectual Property Office,22/11/2023,Pay Costs,DDaT Directorate,Alexander Mann Solutions Limited,2923104,"4,158.36",Not Applicable
"Department for Science, Innovation and Technology",Intellectual Property Office,22/11/2023,Pay Costs,Projects,Alexander Mann Solutions Limited,2923105,"8,623.08",Not Applicable
"Department for Science, Innovation and Technology",Intellectual Property Office,22/11/2023,Pay Costs,DDaT Directorate,Alexander Mann Solutions Limited,2923106,"4,465.50",Not Applicable
"Department for Science, Innovation and Technology",Intellectual Property Office,22/11/2023,Pay Costs,PDTM Directorate,Alexander Mann Solutions Limited,2923107,736.60,Not Applicable
"Department for Science, Innovation and Technology",Intellectual Property Office,22/11/2023,Pay Costs,PDTM Directorate,Alexander Mann Solutions Limited,2923108,736.60,Not Applicable
"Department for Science, Innovation and Technology",Intellectual Property Office,22/11/2023,Pay Costs,"Rights, Policy & Enforcement Directorate",Alexander Mann Solutions Limited,2923109,"1,371.96",Not Applicable
"Department for Science, Innovation and Technology",Intellectual Property Office,22/11/2023,Pay Costs,PDTM Directorate,Alexander Mann Solutions Limited,2923110,736.60,Not Applicable
"Department for Science, Innovation and Technology",Intellectual Property Office,22/11/2023,Pay Costs,PDTM Directorate,Alexander Mann Solutions Limited,2923111,764.20,Not Applicable
"Department for Science, Innovation and Technology",Intellectual Property Office,22/11/2023,Pay Costs,"Rights, Policy & Enforcement Directorate",Alexander Mann Solutions Limited,2923112,713.58,Not Applicable
"Department for Science, Innovation and Technology",Intellectual Property Office,22/11/2023,Pay Costs,PDTM Directorate,Alexander Mann Solutions Limited,2923113,736.60,Not Applicable
"Department for Science, Innovation and Technology",Intellectual Property Office,29/11/2023,Pay Costs,PDTM Directorate,Alexander Mann Solutions Limited,2927340,"1,638.14",Not Applicable
"Department for Science, Innovation and Technology",Intellectual Property Office,29/11/2023,Pay Costs,Projects,Alexander Mann Solutions Limited,2927341,502.94,Not Applicable
"Department for Science, Innovation and Technology",Intellectual Property Office,29/11/2023,Pay Costs,DDaT Directorate,Alexander Mann Solutions Limited,2927342,"3,024.30",Not Applicable
"Department for Science, Innovation and Technology",Intellectual Property Office,29/11/2023,Pay Costs,DDaT Directorate,Alexander Mann Solutions Limited,2927343,"4,095.36",Not Applicable
"Department for Science, Innovation and Technology",Intellectual Property Office,29/11/2023,Pay Costs,PDTM Directorate,Alexander Mann Solutions Limited,2927344,736.60,Not Applicable
"Department for Science, Innovation and Technology",Intellectual Property Office,29/11/2023,Pay Costs,PDTM Directorate,Alexander Mann Solutions Limited,2927345,736.60,Not Applicable
"Department for Science, Innovation and Technology",Intellectual Property Office,29/11/2023,Pay Costs,PDTM Directorate,Alexander Mann Solutions Limited,2927346,736.60,Not Applicable
"Department for Science, Innovation and Technology",Intellectual Property Office,29/11/2023,Pay Costs,DDaT Directorate,Alexander Mann Solutions Limited,2927347,"4,003.56",Not Applicable
"Department for Science, Innovation and Technology",Intellectual Property Office,29/11/2023,Pay Costs,DDaT Directorate,Alexander Mann Solutions Limited,2927348,"3,465.30",Not Applicable
"Department for Science, Innovation and Technology",Intellectual Property Office,29/11/2023,Pay Costs,PDTM Directorate,Alexander Mann Solutions Limited,2927349,736.60,Not Applicable
"Department for Science, Innovation and Technology",Intellectual Property Office,29/11/2023,Pay Costs,PDTM Directorate,Alexander Mann Solutions Limited,2927351,"1,371.96",Not Applicable
"Department for Science, Innovation and Technology",Intellectual Property Office,29/11/2023,Pay Costs,PDTM Directorate,Alexander Mann Solutions Limited,2927352,577.33,Not Applicable
"Department for Science, Innovation and Technology",Intellectual Property Office,29/11/2023,Pay Costs,PDTM Directorate,Alexander Mann Solutions Limited,2927353,736.60,Not Applicable
"Department for Science, Innovation and Technology",Intellectual Property Office,29/11/2023,Pay Costs,PDTM Directorate,Alexander Mann Solutions Limited,2927354,736.60,Not Applicable
"Department for Science, Innovation and Technology",Intellectual Property Office,29/11/2023,Pay Costs,PDTM Directorate,Alexander Mann Solutions Limited,2927355,557.42,Not Applicable
"Department for Science, Innovation and Technology",Intellectual Property Office,29/11/2023,Pay Costs,PDTM Directorate,Alexander Mann Solutions Limited,2927356,592.26,Not Applicable
"Department for Science, Innovation and Technology",Intellectual Property Office,29/11/2023,Pay Costs,PDTM Directorate,Alexander Mann Solutions Limited,2927357,736.60,Not Applicable
"Department for Science, Innovation and Technology",Intellectual Property Office,29/11/2023,Pay Costs,PDTM Directorate,Alexander Mann Solutions Limited,2927360,736.60,Not Applicable
"Department for Science, Innovation and Technology",Intellectual Property Office,29/11/2023,Pay Costs,PDTM Directorate,Alexander Mann Solutions Limited,2927361,685.98,Not Applicable
"Department for Science, Innovation and Technology",Intellectual Property Office,29/11/2023,Pay Costs,PDTM Directorate,Alexander Mann Solutions Limited,2927362,597.24,Not Applicable
"Department for Science, Innovation and Technology",Intellectual Property Office,29/11/2023,Pay Costs,PDTM Directorate,Alexander Mann Solutions Limited,2927363,655.34,Not Applicable
"Department for Science, Innovation and Technology",Intellectual Property Office,30/11/2023,Pay Costs,PDTM Directorate,Alexander Mann Solutions Limited,2927364,736.60,Not Applicable
"Department for Science, Innovation and Technology",Intellectual Property Office,29/11/2023,Pay Costs,PDTM Directorate,Alexander Mann Solutions Limited,2927366,736.60,Not Applicable
"Department for Science, Innovation and Technology",Intellectual Property Office,29/11/2023,Pay Costs,PDTM Directorate,Alexander Mann Solutions Limited,2927367,736.60,Not Applicable
"Department for Science, Innovation and Technology",Intellectual Property Office,29/11/2023,Pay Costs,PDTM Directorate,Alexander Mann Solutions Limited,2927368,736.60,Not Applicable
"Department for Science, Innovation and Technology",Intellectual Property Office,29/11/2023,Pay Costs,PDTM Directorate,Alexander Mann Solutions Limited,2927369,736.60,Not Applicable
"Department for Science, Innovation and Technology",Intellectual Property Office,29/11/2023,Pay Costs,PDTM Directorate,Alexander Mann Solutions Limited,2927370,685.98,Not Applicable
"Department for Science, Innovation and Technology",Intellectual Property Office,30/11/2023,Pay Costs,DDaT Directorate,Alexander Mann Solutions Limited,2927371,"7,391.16",Not Applicable
"Department for Science, Innovation and Technology",Intellectual Property Office,29/11/2023,Pay Costs,DDaT Directorate,Alexander Mann Solutions Limited,2927372,"4,252.86",Not Applicable
"Department for Science, Innovation and Technology",Intellectual Property Office,29/11/2023,Pay Costs,PDTM Directorate,Alexander Mann Solutions Limited,2927374,736.60,Not Applicable
"Department for Science, Innovation and Technology",Intellectual Property Office,29/11/2023,Pay Costs,PDTM Directorate,Alexander Mann Solutions Limited,2927375,661.94,Not Applicable
"Department for Science, Innovation and Technology",Intellectual Property Office,29/11/2023,Pay Costs,PDTM Directorate,Alexander Mann Solutions Limited,2927376,685.98,Not Applicable
"Department for Science, Innovation and Technology",Intellectual Property Office,29/11/2023,Pay Costs,DDaT Directorate,Alexander Mann Solutions Limited,2927377,"4,157.57",Not Applicable
"Department for Science, Innovation and Technology",Intellectual Property Office,29/11/2023,Pay Costs,PDTM Directorate,Alexander Mann Solutions Limited,2927378,602.22,Not Applicable
"Department for Science, Innovation and Technology",Intellectual Property Office,29/11/2023,Pay Costs,PDTM Directorate,Alexander Mann Solutions Limited,2927379,736.60,Not Applicable
"Department for Science, Innovation and Technology",Intellectual Property Office,29/11/2023,Pay Costs,PDTM Directorate,Alexander Mann Solutions Limited,2927380,655.34,Not Applicable
"Department for Science, Innovation and Technology",Intellectual Property Office,29/11/2023,Pay Costs,PDTM Directorate,Alexander Mann Solutions Limited,2927381,736.60,Not Applicable
"Department for Science, Innovation and Technology",Intellectual Property Office,29/11/2023,Pay Costs,PDTM Directorate,Alexander Mann Solutions Limited,2927382,736.60,Not Applicable
"Department for Science, Innovation and Technology",Intellectual Property Office,29/11/2023,Pay Costs,PDTM Directorate,Alexander Mann Solutions Limited,2927383,736.60,Not Applicable
"Department for Science, Innovation and Technology",Intellectual Property Office,29/11/2023,Pay Costs,PDTM Directorate,Alexander Mann Solutions Limited,2927385,736.60,Not Applicable
"Department for Science, Innovation and Technology",Intellectual Property Office,29/11/2023,Pay Costs,PDTM Directorate,Alexander Mann Solutions Limited,2927386,655.34,Not Applicable
"Department for Science, Innovation and Technology",Intellectual Property Office,29/11/2023,Pay Costs,DDaT Directorate,Alexander Mann Solutions Limited,2927387,"4,410.42",Not Applicable
"Department for Science, Innovation and Technology",Intellectual Property Office,29/11/2023,Pay Costs,PDTM Directorate,Alexander Mann Solutions Limited,2927388,736.60,Not Applicable
"Department for Science, Innovation and Technology",Intellectual Property Office,29/11/2023,Pay Costs,DDaT Directorate,Alexander Mann Solutions Limited,2927389,"2,710.08",Not Applicable
"Department for Science, Innovation and Technology",Intellectual Property Office,29/11/2023,Pay Costs,DDaT Directorate,Alexander Mann Solutions Limited,2927390,"3,216.12",Not Applicable
"Department for Science, Innovation and Technology",Intellectual Property Office,29/11/2023,Pay Costs,PDTM Directorate,Alexander Mann Solutions Limited,2927391,685.98,Not Applicable
"Department for Science, Innovation and Technology",Intellectual Property Office,29/11/2023,Pay Costs,PDTM Directorate,Alexander Mann Solutions Limited,2927392,685.98,Not Applicable
"Department for Science, Innovation and Technology",Intellectual Property Office,29/11/2023,Pay Costs,DDaT Directorate,Alexander Mann Solutions Limited,2927393,"2,440.62",Not Applicable
"Department for Science, Innovation and Technology",Intellectual Property Office,29/11/2023,Pay Costs,DDaT Directorate,Alexander Mann Solutions Limited,2927394,"3,913.56",Not Applicable
"Department for Science, Innovation and Technology",Intellectual Property Office,29/11/2023,Pay Costs,PDTM Directorate,Alexander Mann Solutions Limited,2927395,736.60,Not Applicable
"Department for Science, Innovation and Technology",Intellectual Property Office,29/11/2023,Pay Costs,Finance Directorate,Alexander Mann Solutions Limited,2927396,736.60,Not Applicable
"Department for Science, Innovation and Technology",Intellectual Property Office,29/11/2023,Pay Costs,DDaT Directorate,Alexander Mann Solutions Limited,2927397,"4,095.36",Not Applicable
"Department for Science, Innovation and Technology",Intellectual Property Office,29/11/2023,Pay Costs,"Rights, Policy & Enforcement Directorate",Alexander Mann Solutions Limited,2927398,"1,473.19",Not Applicable
"Department for Science, Innovation and Technology",Intellectual Property Office,29/11/2023,Pay Costs,PDTM Directorate,Alexander Mann Solutions Limited,2927399,736.60,Not Applicable
"Department for Science, Innovation and Technology",Intellectual Property Office,29/11/2023,Pay Costs,Projects,Alexander Mann Solutions Limited,2927400,"3,350.64",Not Applicable
"Department for Science, Innovation and Technology",Intellectual Property Office,29/11/2023,Pay Costs,Projects,Alexander Mann Solutions Limited,2927401,"2,999.70",Not Applicable
"Department for Science, Innovation and Technology",Intellectual Property Office,29/11/2023,Pay Costs,Projects,Alexander Mann Solutions Limited,2927402,"4,090.44",Not Applicable
"Department for Science, Innovation and Technology",Intellectual Property Office,29/11/2023,Pay Costs,Projects,Alexander Mann Solutions Limited,2927403,"4,410.42",Not Applicable
"Department for Science, Innovation and Technology",Intellectual Property Office,29/11/2023,Pay Costs,Projects,Alexander Mann Solutions Limited,2927404,"4,003.56",Not Applicable
"Department for Science, Innovation and Technology",Intellectual Property Office,29/11/2023,Pay Costs,DDaT Directorate,Alexander Mann Solutions Limited,2927405,"5,453.94",Not Applicable
"Department for Science, Innovation and Technology",Intellectual Property Office,29/11/2023,Pay Costs,PDTM Directorate,Alexander Mann Solutions Limited,2927406,736.60,Not Applicable
"Department for Science, Innovation and Technology",Intellectual Property Office,29/11/2023,Pay Costs,PDTM Directorate,Alexander Mann Solutions Limited,2927407,736.60,Not Applicable
"Department for Science, Innovation and Technology",Intellectual Property Office,30/11/2023,Pay Costs,PDTM Directorate,Alexander Mann Solutions Limited,2927408,696.78,Not Applicable
"Department for Science, Innovation and Technology",Intellectual Property Office,29/11/2023,Pay Costs,PDTM Directorate,Alexander Mann Solutions Limited,2927409,736.60,Not Applicable
"Department for Science, Innovation and Technology",Intellectual Property Office,29/11/2023,Pay Costs,DDaT Directorate,Alexander Mann Solutions Limited,2927410,"4,158.36",Not Applicable
"Department for Science, Innovation and Technology",Intellectual Property Office,29/11/2023,Pay Costs,Projects,Alexander Mann Solutions Limited,2927411,"4,311.54",Not Applicable
"Department for Science, Innovation and Technology",Intellectual Property Office,30/11/2023,Pay Costs,DDaT Directorate,Alexander Mann Solutions Limited,2927412,"8,931.00",Not Applicable
"Department for Science, Innovation and Technology",Intellectual Property Office,29/11/2023,Pay Costs,PDTM Directorate,Alexander Mann Solutions Limited,2927413,736.60,Not Applicable
"Department for Science, Innovation and Technology",Intellectual Property Office,29/11/2023,Pay Costs,PDTM Directorate,Alexander Mann Solutions Limited,2927414,736.60,Not Applicable
"Department for Science, Innovation and Technology",Intellectual Property Office,29/11/2023,Pay Costs,"Rights, Policy & Enforcement Directorate",Alexander Mann Solutions Limited,2927416,685.98,Not Applicable
"Department for Science, Innovation and Technology",Intellectual Property Office,29/11/2023,Pay Costs,PDTM Directorate,Alexander Mann Solutions Limited,2927417,736.60,Not Applicable
"Department for Science, Innovation and Technology",Intellectual Property Office,29/11/2023,Pay Costs,PDTM Directorate,Alexander Mann Solutions Limited,2927418,736.60,Not Applicable
"Department for Science, Innovation and Technology",Intellectual Property Office,29/11/2023,Pay Costs,PDTM Directorate,Alexander Mann Solutions Limited,2927419,736.60,Not Applicable
"Department for Science, Innovation and Technology",Intellectual Property Office,30/11/2023,Pay Costs,PDTM Directorate,Alexander Mann Solutions Limited,2927420,736.60,Not Applicable
"Department for Science, Innovation and Technology",Intellectual Property Office,29/11/2023,Pay Costs,"Rights, Policy & Enforcement Directorate",Alexander Mann Solutions Limited,2927421,556.20,Not Applicable
"Department for Science, Innovation and Technology",Intellectual Property Office,30/11/2023,Pay Costs,PDTM Directorate,Alexander Mann Solutions Limited,2927422,764.20,Not Applicable
"Department for Science, Innovation and Technology",Intellectual Property Office,30/11/2023,Pay Costs,PDTM Directorate,Alexander Mann Solutions Limited,2927423,"1,421.16",Not Applicable
"Department for Science, Innovation and Technology",Intellectual Property Office,30/11/2023,Pay Costs,PDTM Directorate,Alexander Mann Solutions Limited,2927424,"1,500.79",Not Applicable
"Department for Science, Innovation and Technology",Intellectual Property Office,29/11/2023,Pay Costs,PDTM Directorate,Alexander Mann Solutions Limited,2927425,736.60,Not Applicable
"Department for Science, Innovation and Technology",Intellectual Property Office,07/11/2023,Pay Costs,PDTM Directorate,Alexander Mann Solutions Limited,40775,-647.02,Not Applicable
"Department for Science, Innovation and Technology",Intellectual Property Office,13/11/2023,Pay Costs,PDTM Directorate,Alexander Mann Solutions Limited,40959,-547.48,Not Applicable
"Department for Science, Innovation and Technology",Intellectual Property Office,22/11/2023,Pay Costs,PDTM Directorate,Alexander Mann Solutions Limited,41009,-658.18,Not Applicable
"Department for Science, Innovation and Technology",Intellectual Property Office,22/11/2023,Pay Costs,"Rights, Policy & Enforcement Directorate",Alexander Mann Solutions Limited,41010,-695.26,Not Applicable
"Department for Science, Innovation and Technology",Intellectual Property Office,22/11/2023,Pay Costs,"Rights, Policy & Enforcement Directorate",Alexander Mann Solutions Limited,41011,-695.26,Not Applicable
"Department for Science, Innovation and Technology",Intellectual Property Office,01/11/2023,Supporting UK Business,PDTM Directorate,JA Kemp,967072,"2,500.00",Not Applicable
"Department for Science, Innovation and Technology",Intellectual Property Office,14/11/2023,Supporting UK Business,PDTM Directorate,JA Kemp,967961,"2,500.00",Not Applicable
"Department for Science, Innovation and Technology",Intellectual Property Office,21/11/2023,Information Technology,DDaT Directorate,Cyberis Limited,INV02865,"12,960.00",Not Applicable
"Department for Science, Innovation and Technology",Intellectual Property Office,27/11/2023,Information Technology,DDaT Directorate,Cyberis Limited,INV02903,"10,368.00",Not Applicable
"Department for Science, Innovation and Technology",Intellectual Property Office,30/11/2023,Information Technology,DDaT Directorate,Cyberis Limited,INV02918,"1,296.00",Not Applicable
"Department for Science, Innovation and Technology",Intellectual Property Office,10/11/2023,Supporting UK Business,PDTM Directorate,Hindles Ltd,231043,"5,000.00",Not Applicable
"Department for Science, Innovation and Technology",Intellectual Property Office,10/11/2023,Supporting UK Business,PDTM Directorate,Hindles Ltd,231105,"5,000.00",Not Applicable
"Department for Science, Innovation and Technology",Intellectual Property Office,01/11/2023,Staff Costs,"Rights, Policy & Enforcement Directorate",Thomas Telford Ltd,104404,"1,107.54",Not Applicable
"Department for Science, Innovation and Technology",Intellectual Property Office,24/11/2023,Staff Costs,"Rights, Policy & Enforcement Directorate",Eliesha Training Ltd,23894,"1,188.00",Not Applicable
"Department for Science, Innovation and Technology",Intellectual Property Office,24/11/2023,Staff Costs,"Rights, Policy & Enforcement Directorate",Eliesha Training Ltd,23895,"1,668.00",Not Applicable
"Department for Science, Innovation and Technology",Intellectual Property Office,27/11/2023,Information Technology,Projects,Empyrean Digital Ltd,EMP-874,"19,514.40",Not Applicable
"Department for Science, Innovation and Technology",Intellectual Property Office,27/11/2023,Information Technology,Projects,Empyrean Digital Ltd,EMP-875,"18,399.60",Not Applicable
"Department for Science, Innovation and Technology",Intellectual Property Office,27/11/2023,Information Technology,Projects,Empyrean Digital Ltd,EMP-876,"210,751.20",Not Applicable
"Department for Science, Innovation and Technology",Intellectual Property Office,24/11/2023,Accommodation,"Rights, Policy & Enforcement Directorate",Government Property Agency,00000001/27343,"-11,479.97",Not Applicable
"Department for Science, Innovation and Technology",Intellectual Property Office,24/11/2023,Accommodation,"Rights, Policy & Enforcement Directorate",Government Property Agency,00000001/29618,"101,034.76",Not Applicable
"Department for Science, Innovation and Technology",Intellectual Property Office,17/11/2023,Miscellaneous Expenses General,Strategy Directorate,AudienceNet,INV-1771,"23,100.00",Not Applicable
"Department for Science, Innovation and Technology",Intellectual Property Office,20/11/2023,Staff Costs,Finance Directorate,BPP Professional Education,25443,"2,520.00",Not Applicable
"Department for Science, Innovation and Technology",Intellectual Property Office,01/11/2023,Supporting UK Business,Business & International Policy Directorate,Axis12 Limited,INV-5312,"1,753.20",Not Applicable
"Department for Science, Innovation and Technology",Intellectual Property Office,10/11/2023,Supporting UK Business,Business & International Policy Directorate,Axis12 Limited,INV-5335,"16,884.00",Not Applicable
"Department for Science, Innovation and Technology",Intellectual Property Office,30/11/2023,Supporting UK Business,Business & International Policy Directorate,Axis12 Limited,INV-5345,"1,753.20",Not Applicable
"Department for Science, Innovation and Technology",Intellectual Property Office,10/11/2023,Supporting UK Business,PDTM Directorate,Adamson Jones IP Limited,26887,"2,500.00",Not Applicable
"Department for Science, Innovation and Technology",Intellectual Property Office,24/11/2023,Staff Costs,"Rights, Policy & Enforcement Directorate",Avado Learning Limited,32173,"2,699.10",Not Applicable
"Department for Science, Innovation and Technology",Intellectual Property Office,21/11/2023,Staff Costs,"Rights, Policy & Enforcement Directorate",AKD Solutions Limited,INV-1298,"1,800.00",Not Applicable
"Department for Science, Innovation and Technology",Intellectual Property Office,10/11/2023,Staff Costs,"Rights, Policy & Enforcement Directorate",The Myers-Briggs Company Limited,INV0858130,"4,782.00",Not Applicable
"Department for Science, Innovation and Technology",Intellectual Property Office,29/11/2023,Supporting UK Business,PDTM Directorate,Maucher Jenkins,572677,"2,500.00",Not Applicable
"Department for Science, Innovation and Technology",Intellectual Property Office,10/11/2023,Information Technology,PDTM Directorate,Mintel Group Ltd,M28873,"78,324.00",Not Applicable
"Department for Science, Innovation and Technology",Intellectual Property Office,08/11/2023,Accommodation,"Rights, Policy & Enforcement Directorate",Perfect Circle JV Ltd,30957,"11,707.56",Not Applicable
"Department for Science, Innovation and Technology",Intellectual Property Office,15/11/2023,Accommodation,"Rights, Policy & Enforcement Directorate",Perfect Circle JV Ltd,31924,"12,481.92",Not Applicable
"Department for Science, Innovation and Technology",Intellectual Property Office,02/11/2023,Information Technology,DDaT Directorate,Cloudflare Inc,CI-217021,"10,513.26",Not Applicable
"Department for Science, Innovation and Technology",Intellectual Property Office,29/11/2023,Supporting UK Business,PDTM Directorate,Kuit Steinart Levy LLP,P1599,"2,500.00",Not Applicable
"Department for Science, Innovation and Technology",Intellectual Property Office,10/11/2023,Office Machinery,"Rights, Policy & Enforcement Directorate",Ricoh UK Ltd,102339679,"26,745.05",Not Applicable
"Department for Science, Innovation and Technology",Intellectual Property Office,03/11/2023,Information Technology,DDaT Directorate,Ricoh UK Ltd,58864297,"8,078.40",Not Applicable
"Department for Science, Innovation and Technology",Intellectual Property Office,14/11/2023,Computer Contracts,DDaT Directorate,URM Consulting Services Ltd,SI-17758,"2,640.00",Not Applicable
"Department for Science, Innovation and Technology",Intellectual Property Office,06/11/2023,Staff Costs,DDaT Directorate,URM Consulting Services Ltd,SI-17822,"1,918.80",Not Applicable
"Department for Science, Innovation and Technology",Intellectual Property Office,17/11/2023,Supporting UK Business,PDTM Directorate,Panoramix Limited,INV-1347,"5,000.00",Not Applicable
"Department for Science, Innovation and Technology",Intellectual Property Office,01/11/2023,Supporting UK Business,PDTM Directorate,Beuro IP Limited,INV-0634,"5,000.00",Not Applicable
"Department for Science, Innovation and Technology",Intellectual Property Office,07/11/2023,Pay Costs,Projects,IRG Advisors T/A Odgers Interim,871433,862.20,Not Applicable
"Department for Science, Innovation and Technology",Intellectual Property Office,29/11/2023,Information Technology,PDTM Directorate,Content Online AB,10671,"147,684.29",Not Applicable
"Department for Science, Innovation and Technology",Intellectual Property Office,03/11/2023,Telecoms,DDaT Directorate,Nominet UK,CI000730,"2,463.60",Not Applicable
"Department for Science, Innovation and Technology",Intellectual Property Office,14/11/2023,Supporting UK Business,PDTM Directorate,Berwins Solicitors,102073,"2,500.00",Not Applicable
"Department for Science, Innovation and Technology",Intellectual Property Office,29/11/2023,Supporting UK Business,PDTM Directorate,Concept IP Services Limited,INV-19330,"2,500.00",Not Applicable
"Department for Science, Innovation and Technology",Intellectual Property Office,10/11/2023,Legal & Hearings,PDTM Directorate,Womble Bond Dickinson (UK) LLP,3747307,"2,636.41",Not Applicable
"Department for Science, Innovation and Technology",Intellectual Property Office,21/11/2023,Information Technology,DDaT Directorate,Hewlett Packard International Bank DAC,4.00901E+11,"17,859.29",Not Applicable
"Department for Science, Innovation and Technology",Intellectual Property Office,21/11/2023,Information Technology,DDaT Directorate,Hewlett Packard International Bank DAC,4.00901E+11,"18,113.07",Not Applicable
"Department for Science, Innovation and Technology",Intellectual Property Office,14/11/2023,Information Technology,DDaT Directorate,Hewlett Packard International Bank DAC,4.00901E+11,"5,928.45",Not Applicable
"Department for Science, Innovation and Technology",Intellectual Property Office,14/11/2023,Information Technology,DDaT Directorate,Hewlett Packard International Bank DAC,4.00901E+11,"4,594.90",Not Applicable
"Department for Science, Innovation and Technology",Intellectual Property Office,14/11/2023,Marketing & Publicity,Strategy Directorate,Big Bang CIC,1072,"16,200.00",Not Applicable
"Department for Science, Innovation and Technology",Intellectual Property Office,03/11/2023,Pay Costs,Projects,Allen Lane LTD,1256379,"4,380.00",Not Applicable
"Department for Science, Innovation and Technology",Intellectual Property Office,10/11/2023,Pay Costs,Projects,Allen Lane LTD,1256583,"4,380.00",Not Applicable
"Department for Science, Innovation and Technology",Intellectual Property Office,17/11/2023,Pay Costs,Projects,Allen Lane LTD,1256992,"4,380.00",Not Applicable
"Department for Science, Innovation and Technology",Intellectual Property Office,24/11/2023,Pay Costs,Projects,Allen Lane LTD,1257365,"4,380.00",Not Applicable
"Department for Science, Innovation and Technology",Intellectual Property Office,24/11/2023,Pay Costs,DDaT Directorate,Allen Lane LTD,1257637,"22,230.00",Not Applicable
"Department for Science, Innovation and Technology",Intellectual Property Office,30/11/2023,Pay Costs,Projects,Allen Lane LTD,1257885,"4,380.00",Not Applicable
"Department for Science, Innovation and Technology",Intellectual Property Office,30/11/2023,Pay Costs,DDaT Directorate,Allen Lane LTD,1257996,"4,560.00",Not Applicable
"Department for Science, Innovation and Technology",Intellectual Property Office,03/11/2023,Supporting UK Business,PDTM Directorate,Mathys & Squire Consulting Ltd,INV-11534,"2,500.00",Not Applicable
"Department for Science, Innovation and Technology",Intellectual Property Office,02/11/2023,Information Technology,Projects,"Realtimeboard, Inc. dba Miro",INV2778459,"28,633.62",Not Applicable
"Department for Science, Innovation and Technology",Intellectual Property Office,23/11/2023,Misc Expenses Finance,Finance Directorate,Worldpay,279793462,"181,728.50",Not Applicable
"Department for Science, Innovation and Technology",Intellectual Property Office,23/11/2023,Misc Expenses Finance,Finance Directorate,Worldpay,GM1101419,916.13,Not Applicable
"Department for Science, Innovation and Technology",Intellectual Property Office,10/11/2023,Pay Costs,DDaT Directorate,Talent International Holdings PTY Limite,66983,"14,400.00",Not Applicable
"Department for Science, Innovation and Technology",Intellectual Property Office,07/11/2023,Pay Costs,DDaT Directorate,Talent International Holdings PTY Limite,66984,"18,000.00",Not Applicable
"Department for Science, Innovation and Technology",Intellectual Property Office,07/11/2023,Pay Costs,Projects,Talent International Holdings PTY Limite,66985,"17,352.00",Not Applicable
"Department for Science, Innovation and Technology",Intellectual Property Office,06/11/2023,Pay Costs,"Rights, Policy & Enforcement Directorate",Edenred,1178175,"25,950.00",Not Applicable
"Department for Science, Innovation and Technology",Intellectual Property Office,14/11/2023,Legal & Hearings,PDTM Directorate,Mills and Reeve LLP,228355,"1,301.46",Not Applicable
"Department for Science, Innovation and Technology",Intellectual Property Office,15/11/2023,Accommodation,"Rights, Policy & Enforcement Directorate",TotalEnergies Gas & Power,319881040-23,"6,793.98",Not Applicable
"Department for Science, Innovation and Technology",Intellectual Property Office,13/11/2023,Marketing & Publicity,PDTM Directorate,Fortem Retailing Ltd,INV-4345,"6,277.50",Not Applicable
"Department for Science, Innovation and Technology",Intellectual Property Office,14/11/2023,Staff Costs,DDaT Directorate,Creo Skills Ltd,INV-0779,"1,200.00",Not Applicable
"Department for Science, Innovation and Technology",Intellectual Property Office,08/11/2023,Pay Costs,Projects,JobSpec Limited,JS-759156,"2,350.80",Not Applicable
"Department for Science, Innovation and Technology",Intellectual Property Office,08/11/2023,Pay Costs,DDaT Directorate,JobSpec Limited,JS-759157,"4,440.00",Not Applicable
"Department for Science, Innovation and Technology",Intellectual Property Office,10/11/2023,Pay Costs,Projects,JobSpec Limited,JS-759158,"3,918.00",Not Applicable
"Department for Science, Innovation and Technology",Intellectual Property Office,10/11/2023,Pay Costs,DDaT Directorate,JobSpec Limited,JS-759159,"4,440.00",Not Applicable
"Department for Science, Innovation and Technology",Intellectual Property Office,14/11/2023,Pay Costs,Projects,JobSpec Limited,JS-759160,"3,918.00",Not Applicable
"Department for Science, Innovation and Technology",Intellectual Property Office,14/11/2023,Pay Costs,DDaT Directorate,JobSpec Limited,JS-759161,"4,440.00",Not Applicable
"Department for Science, Innovation and Technology",Intellectual Property Office,24/11/2023,Pay Costs,Projects,JobSpec Limited,JS-759162,"3,526.20",Not Applicable
"Department for Science, Innovation and Technology",Intellectual Property Office,24/11/2023,Pay Costs,DDaT Directorate,JobSpec Limited,JS-759163,"4,440.00",Not Applicable
"Department for Science, Innovation and Technology",Intellectual Property Office,20/11/2023,Supporting UK Business,"Rights, Policy & Enforcement Directorate",Barley Communications Limited,1468,"16,800.00",Not Applicable
"Department for Science, Innovation and Technology",Intellectual Property Office,28/11/2023,Supporting UK Business,PDTM Directorate,Haddletons,3841,"2,500.00",Not Applicable
"Department for Science, Innovation and Technology",Intellectual Property Office,08/11/2023,Pay Costs,DDaT Directorate,Interquest Group UK Limited,217733,"23,993.64",Not Applicable
"Department for Science, Innovation and Technology",Intellectual Property Office,01/11/2023,Miscellaneous Expenses General,PDTM Directorate,thebigword Group Ltd,80097768,797.33,Not Applicable
"Department for Science, Innovation and Technology",Intellectual Property Office,20/11/2023,Miscellaneous Expenses General,"Rights, Policy & Enforcement Directorate",Mid Glamorgan Fork Truck Training Servi,13195,700.00,Not Applicable
"Department for Science, Innovation and Technology",Intellectual Property Office,10/11/2023,Supporting UK Business,PDTM Directorate,Simons Muirhead Burton LLP,53977,"2,500.00",Not Applicable
"Department for Science, Innovation and Technology",Intellectual Property Office,30/11/2023,Pay Costs,"Rights, Policy & Enforcement Directorate",WMROCU,214431,"55,161.92",Not Applicable
"Department for Science, Innovation and Technology",Intellectual Property Office,22/11/2023,Supporting UK Business,PDTM Directorate,London IP Ltd,INV-2012879,"3,666.00",Not Applicable
"Department for Science, Innovation and Technology",Intellectual Property Office,16/11/2023,Staff Costs,DDaT Directorate,Escal Inst of Advanced Technologies SANS,EC00197450,"7,237.05",Not Applicable
"Department for Science, Innovation and Technology",Intellectual Property Office,10/11/2023,Staff Costs,"Rights, Policy & Enforcement Directorate",WRU Gwent Stadium Ltd,4655,"1,296.00",Not Applicable
"Department for Science, Innovation and Technology",Intellectual Property Office,29/11/2023,Supporting UK Business,PDTM Directorate,CLIMEFORT LTD,IPO-002,"2,500.00",Not Applicable
"Department for Science, Innovation and Technology",Intellectual Property Office,28/11/2023,Supporting UK Business,PDTM Directorate,Lucidity IP Ltd,RS0129GB,"5,000.00",Not Applicable
"Department for Science, Innovation and Technology",Intellectual Property Office,22/11/2023,Information Technology,DDaT Directorate,Freedom of Speech Ltd,INV-13328,"4,754.40",Not Applicable
"Department for Science, Innovation and Technology",Intellectual Property Office,03/11/2023,Supporting UK Business,PDTM Directorate,NATALIA JAMES LTD,INV-0023,"2,083.33",Not Applicable
"Department for Science, Innovation and Technology",Intellectual Property Office,17/11/2023,Supporting UK Business,PDTM Directorate,Joelson LLP,307456,"2,500.00",Not Applicable
"Department for Science, Innovation and Technology",Intellectual Property Office,29/11/2023,Supporting UK Business,PDTM Directorate,BBM Solicitors Ltd,EAGLE01-08,"1,916.00",Not Applicable
"Department for Science, Innovation and Technology",Intellectual Property Office,29/11/2023,Other,"Rights, Policy & Enforcement Directorate",Lul Ticket Machine,H57720231201bppykqkxj,30.40,Not Applicable
"Department for Science, Innovation and Technology",Intellectual Property Office,29/11/2023,Office Stationery,"Rights, Policy & Enforcement Directorate",Healthy Workstations Ltd,H57720231201dadqfgvmz,74.40,Not Applicable
"Department for Science, Innovation and Technology",Intellectual Property Office,29/11/2023,Office Stationery,"Rights, Policy & Enforcement Directorate",Healthy Workstations Ltd,H57720231201gijhsqzbj,42.00,Not Applicable
"Department for Science, Innovation and Technology",Intellectual Property Office,28/11/2023,Overseas Patent Specifications,PDTM Directorate,Wiley,H57720231201ginhjgtwe,48.26,Not Applicable
"Department for Science, Innovation and Technology",Intellectual Property Office,29/11/2023,Other,"Rights, Policy & Enforcement Directorate",Specsaversevougb-,H57720231201mbtogxuhy,680.00,Not Applicable
"Department for Science, Innovation and Technology",Intellectual Property Office,29/11/2023,Career Development Services,DDaT Directorate,Testing Exam Vue*microsof,H57720231201mryocnifp,41.40,Not Applicable
"Department for Science, Innovation and Technology",Intellectual Property Office,28/11/2023,Office Stationery,"Rights, Policy & Enforcement Directorate",Amznmktplace,H57720231130ilixastki,89.10,Not Applicable
"Department for Science, Innovation and Technology",Intellectual Property Office,21/11/2023,Legal Consultancy,DDaT Directorate,Ipo,H57720231130njzhbwpdl,-5.00,Not Applicable
"Department for Science, Innovation and Technology",Intellectual Property Office,28/11/2023,Career Development Services,DDaT Directorate,Urm Consulting,H57720231130nmwdrhtec,450.00,Not Applicable
"Department for Science, Innovation and Technology",Intellectual Property Office,28/11/2023,Office Stationery,"Rights, Policy & Enforcement Directorate",Amznmktplace,H57720231130pbcmiyckr,52.96,Not Applicable
"Department for Science, Innovation and Technology",Intellectual Property Office,28/11/2023,Career Development Services,DDaT Directorate,Amznmktplace,H57720231130qduxtfgdy,30.94,Not Applicable
"Department for Science, Innovation and Technology",Intellectual Property Office,27/11/2023,Overseas Patent Specifications,PDTM Directorate,Wiley,H57720231130rxbmlgvbx,40.54,Not Applicable
"Department for Science, Innovation and Technology",Intellectual Property Office,27/11/2023,Entertainment,"Rights, Policy & Enforcement Directorate",Www.Filmbank.Co.Uk,H57720231130sclqgobiy,-150.00,Not Applicable
"Department for Science, Innovation and Technology",Intellectual Property Office,28/11/2023,Network and infrastructure H/W,"Rights, Policy & Enforcement Directorate",Asda Superstore 4928,H57720231130styantpvt,10.45,Not Applicable
"Department for Science, Innovation and Technology",Intellectual Property Office,28/11/2023,Career Development Services,"Rights, Policy & Enforcement Directorate",Avado,H57720231130swelftzzp,1619.00,Not Applicable
"Department for Science, Innovation and Technology",Intellectual Property Office,28/11/2023,Office Stationery,"Rights, Policy & Enforcement Directorate",Imo Car Wash Newport,H57720231130vgpdnbytv,36.00,Not Applicable
"Department for Science, Innovation and Technology",Intellectual Property Office,17/11/2023,Legal Consultancy,DDaT Directorate,Ipo,H57720231130yeoqgdfpv,-50.00,Not Applicable
"Department for Science, Innovation and Technology",Intellectual Property Office,27/11/2023,Office Stationery,"Rights, Policy & Enforcement Directorate",Amznmktplace,H57720231129bqcfpxxxq,91.80,Not Applicable
"Department for Science, Innovation and Technology",Intellectual Property Office,23/11/2023,Overseas Patent Specifications,PDTM Directorate,Springer Customer Serv,H57720231129ctkidulkx,19.95,Not Applicable
"Department for Science, Innovation and Technology",Intellectual Property Office,27/11/2023,Office Stationery,"Rights, Policy & Enforcement Directorate",Amazon.Co.Uk,H57720231129dgygdwbfu,14.15,Not Applicable
"Department for Science, Innovation and Technology",Intellectual Property Office,27/11/2023,Office Stationery,"Rights, Policy & Enforcement Directorate",Amazon.Co.Uk,H57720231129fzneqnyfu,14.16,Not Applicable
"Department for Science, Innovation and Technology",Intellectual Property Office,27/11/2023,Office Stationery,"Rights, Policy & Enforcement Directorate",Amazon.Co.Uk,H57720231129gificcwuj,14.15,Not Applicable
"Department for Science, Innovation and Technology",Intellectual Property Office,27/11/2023,Office Stationery,"Rights, Policy & Enforcement Directorate",Amazon.Co.Uk,H57720231129iahtrkdrn,14.15,Not Applicable
"Department for Science, Innovation and Technology",Intellectual Property Office,27/11/2023,Office Stationery,"Rights, Policy & Enforcement Directorate",Amazon.Co.Uk,H57720231129kghqbcezi,14.15,Not Applicable
"Department for Science, Innovation and Technology",Intellectual Property Office,27/11/2023,Office Stationery,"Rights, Policy & Enforcement Directorate",Amazon.Co.Uk,H57720231129obaitqfaj,14.15,Not Applicable
"Department for Science, Innovation and Technology",Intellectual Property Office,27/11/2023,Office Stationery,"Rights, Policy & Enforcement Directorate",Amznmktplace,H57720231129pphnmgtcp,37.98,Not Applicable
"Department for Science, Innovation and Technology",Intellectual Property Office,25/11/2023,Minor Works-Goods,"Rights, Policy & Enforcement Directorate",B&q Ltd,H57720231128agnwuqvdw,-60.90,Not Applicable
"Department for Science, Innovation and Technology",Intellectual Property Office,24/11/2023,Minor Works-Goods,"Rights, Policy & Enforcement Directorate",Tesco Stores 2931,H57720231128doomjztrm,2.00,Not Applicable
"Department for Science, Innovation and Technology",Intellectual Property Office,21/11/2023,Legal Consultancy,DDaT Directorate,Ipo,H57720231128envaflyim,-30.00,Not Applicable
"Department for Science, Innovation and Technology",Intellectual Property Office,24/11/2023,Career Development Services,Finance Directorate,Testing Exam Vue*cima,H57720231128mtpuchkrn,350.00,Not Applicable
"Department for Science, Innovation and Technology",Intellectual Property Office,24/11/2023,Minor Works-Goods,"Rights, Policy & Enforcement Directorate",B&q Ltd,H57720231128nguaqyzzm,60.90,Not Applicable
"Department for Science, Innovation and Technology",Intellectual Property Office,24/11/2023,Office Stationery,"Rights, Policy & Enforcement Directorate",What,H57720231128sxebtwaky,9.52,Not Applicable
"Department for Science, Innovation and Technology",Intellectual Property Office,23/11/2023,Overseas Patent Specifications,PDTM Directorate,Nature Article Pdf,H57720231125boowoxtly,39.66,Not Applicable
"Department for Science, Innovation and Technology",Intellectual Property Office,23/11/2023,Office Stationery,"Rights, Policy & Enforcement Directorate",Amznmktplace,H57720231125riootnoaf,-212.89,Not Applicable
"Department for Science, Innovation and Technology",Intellectual Property Office,23/11/2023,Other,"Rights, Policy & Enforcement Directorate",Healthymuscles,H57720231125xikzmtduc,180.00,Not Applicable
"Department for Science, Innovation and Technology",Intellectual Property Office,23/11/2023,Other,"Rights, Policy & Enforcement Directorate",Office For National St,H57720231125xjmlbvohj,1.05,Not Applicable
"Department for Science, Innovation and Technology",Intellectual Property Office,21/11/2023,Legal Consultancy,DDaT Directorate,Ipo,H57720231124ccxhxqeda,170.00,Not Applicable
"Department for Science, Innovation and Technology",Intellectual Property Office,22/11/2023,Office Stationery,"Rights, Policy & Enforcement Directorate",Amznmktplace,H57720231124cmxcqhrwg,35.34,Not Applicable
"Department for Science, Innovation and Technology",Intellectual Property Office,22/11/2023,Career Development Services,"Rights, Policy & Enforcement Directorate",Datacamp Inc.,H57720231124dbjqqiulf,119.49,Not Applicable
"Department for Science, Innovation and Technology",Intellectual Property Office,22/11/2023,Books,"Rights, Policy & Enforcement Directorate",Hmcts Moj,H57720231124eudlvqkyi,11.00,Not Applicable
"Department for Science, Innovation and Technology",Intellectual Property Office,14/11/2023,Legal Consultancy,DDaT Directorate,Ipo,H57720231124euwgkxbts,-170.00,Not Applicable
"Department for Science, Innovation and Technology",Intellectual Property Office,22/11/2023,Minor Works-Goods,"Rights, Policy & Enforcement Directorate",Batterystation.Co.Uk,H57720231124evgjaukyo,168.71,Not Applicable
"Department for Science, Innovation and Technology",Intellectual Property Office,21/11/2023,Legal Consultancy,DDaT Directorate,Ipo,H57720231124hjzubyqdr,5.00,Not Applicable
"Department for Science, Innovation and Technology",Intellectual Property Office,21/11/2023,Legal Consultancy,DDaT Directorate,Ipo,H57720231124igvkffxpq,30.00,Not Applicable
"Department for Science, Innovation and Technology",Intellectual Property Office,21/11/2023,Overseas Patent Specifications,PDTM Directorate,Mary Ann Liebert Pub,H57720231124nwemllrci,42.21,Not Applicable
"Department for Science, Innovation and Technology",Intellectual Property Office,22/11/2023,Office Stationery,"Rights, Policy & Enforcement Directorate",Cvp,H57720231124oqcdiqogr,216.00,Not Applicable
"Department for Science, Innovation and Technology",Intellectual Property Office,21/11/2023,Legal Consultancy,DDaT Directorate,Ipo,H57720231124otvhovwal,50.00,Not Applicable
"Department for Science, Innovation and Technology",Intellectual Property Office,14/11/2023,Legal Consultancy,DDaT Directorate,Ipo,H57720231124qzosgvdoh,-50.00,Not Applicable
"Department for Science, Innovation and Technology",Intellectual Property Office,11/11/2023,Legal Consultancy,DDaT Directorate,Ipo,H57720231124rkdxkbcnn,-50.00,Not Applicable
"Department for Science, Innovation and Technology",Intellectual Property Office,22/11/2023,Office Stationery,"Rights, Policy & Enforcement Directorate",Amznmktplace,H57720231124ssjkctkij,34.49,Not Applicable
"Department for Science, Innovation and Technology",Intellectual Property Office,22/11/2023,Office Stationery,"Rights, Policy & Enforcement Directorate",Amznmktplace,H57720231124vffqjqwtx,23.76,Not Applicable
"Department for Science, Innovation and Technology",Intellectual Property Office,11/11/2023,Legal Consultancy,DDaT Directorate,Ipo,H57720231124wajvimmkh,-170.00,Not Applicable
"Department for Science, Innovation and Technology",Intellectual Property Office,21/11/2023,Legal Consultancy,DDaT Directorate,Ipo,H57720231124xvtyiuqtk,30.00,Not Applicable
"Department for Science, Innovation and Technology",Intellectual Property Office,22/11/2023,Office Stationery,"Rights, Policy & Enforcement Directorate",Healthy Workstations Ltd,H57720231124yotggczue,14.40,Not Applicable
"Department for Science, Innovation and Technology",Intellectual Property Office,21/11/2023,Career Development Services,Finance Directorate,Kaplan Financial Ltd,H57720231123gmbuxcnvk,986.00,Not Applicable
"Department for Science, Innovation and Technology",Intellectual Property Office,21/11/2023,Overseas Patent Specifications,PDTM Directorate,Wiley,H57720231123jvtlmyiyq,40.78,Not Applicable
"Department for Science, Innovation and Technology",Intellectual Property Office,21/11/2023,Office Stationery,"Rights, Policy & Enforcement Directorate",Amznmktplace,H57720231123ltvpbjfbc,24.99,Not Applicable
"Department for Science, Innovation and Technology",Intellectual Property Office,21/11/2023,Other,"Rights, Policy & Enforcement Directorate",Executivegrapevine,H57720231123ppmtnyndc,27.99,Not Applicable
"Department for Science, Innovation and Technology",Intellectual Property Office,21/11/2023,Career Development Services,Finance Directorate,Kaplan Financial Ltd,H57720231123rgdxmlomd,141.00,Not Applicable
"Department for Science, Innovation and Technology",Intellectual Property Office,20/11/2023,Overseas Patent Specifications,PDTM Directorate,Nature Article Pdf,H57720231122bbzomhung,39.90,Not Applicable
"Department for Science, Innovation and Technology",Intellectual Property Office,20/11/2023,Network and infrastructure H/W,"Rights, Policy & Enforcement Directorate",Asda Superstore 4928,H57720231122fbtxsjeqb,15.45,Not Applicable
"Department for Science, Innovation and Technology",Intellectual Property Office,20/11/2023,Office Stationery,"Rights, Policy & Enforcement Directorate",Amznmktplace,H57720231122gdjjdzdwc,39.99,Not Applicable
"Department for Science, Innovation and Technology",Intellectual Property Office,20/11/2023,Office Stationery,"Rights, Policy & Enforcement Directorate",Ppe Workwear Direct,H57720231122hszmofnog,221.41,Not Applicable
"Department for Science, Innovation and Technology",Intellectual Property Office,20/11/2023,Career Development Services,Finance Directorate,Registrationline,H57720231122oorjuvnbg,360.00,Not Applicable
"Department for Science, Innovation and Technology",Intellectual Property Office,20/11/2023,Other,"Rights, Policy & Enforcement Directorate",British Red Cross Soci,H57720231122seyqbntcw,418.80,Not Applicable
"Department for Science, Innovation and Technology",Intellectual Property Office,20/11/2023,Office Stationery,"Rights, Policy & Enforcement Directorate",Amznmktplace,H57720231122tjjivrodk,212.89,Not Applicable
"Department for Science, Innovation and Technology",Intellectual Property Office,20/11/2023,Other,"Rights, Policy & Enforcement Directorate",British Red Cross Soci,H57720231122ujyximsmh,418.80,Not Applicable
"Department for Science, Innovation and Technology",Intellectual Property Office,20/11/2023,Other,"Rights, Policy & Enforcement Directorate",Hbrsubscription,H57720231122xbnbhwfvn,120.00,Not Applicable
"Department for Science, Innovation and Technology",Intellectual Property Office,20/11/2023,Office Stationery,"Rights, Policy & Enforcement Directorate",Www.Screwfix.Com,H57720231122ydlrzptvc,322.19,Not Applicable
"Department for Science, Innovation and Technology",Intellectual Property Office,17/11/2023,Funding of Enforcement,"Rights, Policy & Enforcement Directorate",Amznmktplace,H57720231121bctlhjndg,49.49,Not Applicable
"Department for Science, Innovation and Technology",Intellectual Property Office,17/11/2023,Career Development Services,DDaT Directorate,It Governance Ltd,H57720231121ccfxhtdol,2790.00,Not Applicable
"Department for Science, Innovation and Technology",Intellectual Property Office,17/11/2023,Funding of Enforcement,"Rights, Policy & Enforcement Directorate",Amznmktplace,H57720231121dvlofxhfn,48.80,Not Applicable
"Department for Science, Innovation and Technology",Intellectual Property Office,17/11/2023,Legal Consultancy,DDaT Directorate,Ipo,H57720231121iffsircwm,50.00,Not Applicable
"Department for Science, Innovation and Technology",Intellectual Property Office,18/09/2023,Legal Consultancy,DDaT Directorate,Ipo,H57720231121kksksdmrw,-170.00,Not Applicable
"Department for Science, Innovation and Technology",Intellectual Property Office,12/11/2023,Legal Consultancy,DDaT Directorate,Ipo,H57720231121ktirlxdym,-50.00,Not Applicable
"Department for Science, Innovation and Technology",Intellectual Property Office,11/11/2023,Legal Consultancy,DDaT Directorate,Ipo,H57720231121mbarnvwbc,-50.00,Not Applicable
"Department for Science, Innovation and Technology",Intellectual Property Office,12/11/2023,Legal Consultancy,DDaT Directorate,Ipo,H57720231121rfgubqfqk,-170.00,Not Applicable
"Department for Science, Innovation and Technology",Intellectual Property Office,17/11/2023,Career Development Services,DDaT Directorate,Udemy,H57720231121vlzbvdpbd,10.99,Not Applicable
"Department for Science, Innovation and Technology",Intellectual Property Office,19/08/2023,Legal Consultancy,DDaT Directorate,Ipo,H57720231121vsqemkrnj,-5.00,Not Applicable
"Department for Science, Innovation and Technology",Intellectual Property Office,17/11/2023,Minor Works-Goods,"Rights, Policy & Enforcement Directorate",Donaghy Bros,H57720231121ygiqxtnuj,249.00,Not Applicable
"Department for Science, Innovation and Technology",Intellectual Property Office,17/11/2023,Legal Consultancy,DDaT Directorate,Ipo,H57720231121yhadxwucf,170.00,Not Applicable
"Department for Science, Innovation and Technology",Intellectual Property Office,16/11/2023,Career Development Services,"Rights, Policy & Enforcement Directorate",Amazon.Co.Uk,H57720231118awncbmpmu,22.65,Not Applicable
"Department for Science, Innovation and Technology",Intellectual Property Office,16/11/2023,Office Stationery,"Rights, Policy & Enforcement Directorate",Ppe Workwear Direct,H57720231118grmyponed,52.07,Not Applicable
"Department for Science, Innovation and Technology",Intellectual Property Office,15/11/2023,Overseas Patent Specifications,PDTM Directorate,Wiley,H57720231118jfgufjquh,49.58,Not Applicable
"Department for Science, Innovation and Technology",Intellectual Property Office,16/11/2023,Office Stationery,"Rights, Policy & Enforcement Directorate",Amznmktplace,H57720231118pzcagkzpq,125.00,Not Applicable
"Department for Science, Innovation and Technology",Intellectual Property Office,16/10/2023,Legal Consultancy,DDaT Directorate,Ipo,H57720231118sgfeenuxo,-170.00,Not Applicable
"Department for Science, Innovation and Technology",Intellectual Property Office,16/11/2023,Office Stationery,"Rights, Policy & Enforcement Directorate",Amazon.Co.Uk,H57720231118yetjvvflo,74.25,Not Applicable
"Department for Science, Innovation and Technology",Intellectual Property Office,15/11/2023,Career Development Services,DDaT Directorate,Scrum Trainer,H57720231117bkmdjwkbq,950.00,Not Applicable
"Department for Science, Innovation and Technology",Intellectual Property Office,15/11/2023,Minor Works-Goods,"Rights, Policy & Enforcement Directorate",Www.Screwfix.Com,H57720231117btrzuqfgl,58.94,Not Applicable
"Department for Science, Innovation and Technology",Intellectual Property Office,14/11/2023,Legal Consultancy,DDaT Directorate,Ipo,H57720231117cimbugdij,50.00,Not Applicable
"Department for Science, Innovation and Technology",Intellectual Property Office,14/11/2023,Legal Consultancy,DDaT Directorate,Ipo,H57720231117dumpwqvbd,30.00,Not Applicable
"Department for Science, Innovation and Technology",Intellectual Property Office,15/11/2023,Minor Works-Goods,"Rights, Policy & Enforcement Directorate",Www.Plasticsheets.Com,H57720231117fxbqpmugr,111.93,Not Applicable
"Department for Science, Innovation and Technology",Intellectual Property Office,15/11/2023,Overseas Patent Specifications,PDTM Directorate,Transtechpublications,H57720231117iskjpsvtv,35.08,Not Applicable
"Department for Science, Innovation and Technology",Intellectual Property Office,14/11/2023,Overseas Patent Specifications,PDTM Directorate,S. Karger Ag,H57720231117tehbjqlut,32.89,Not Applicable
"Department for Science, Innovation and Technology",Intellectual Property Office,15/11/2023,Career Development Services,DDaT Directorate,Amazon.Co.Uk,H57720231117tmtvhpktp,33.94,Not Applicable
"Department for Science, Innovation and Technology",Intellectual Property Office,14/11/2023,Legal Consultancy,DDaT Directorate,Ipo,H57720231117yqfkloghs,5.00,Not Applicable
"Department for Science, Innovation and Technology",Intellectual Property Office,14/11/2023,Legal Consultancy,DDaT Directorate,Ipo,H57720231117zuguvujci,170.00,Not Applicable
"Department for Science, Innovation and Technology",Intellectual Property Office,14/11/2023,Placement Fees,Finance Directorate,Linkedin Ads 9618144724,H57720231116dfrhoyihq,123.78,Not Applicable
"Department for Science, Innovation and Technology",Intellectual Property Office,14/11/2023,Overseas Patent Specifications,PDTM Directorate,Wiley,H57720231116dxpvkapdk,41.41,Not Applicable
"Department for Science, Innovation and Technology",Intellectual Property Office,14/11/2023,Overseas Patent Specifications,PDTM Directorate,Informa UK Ecom Gb,H57720231116jqungfjhd,51.60,Not Applicable
"Department for Science, Innovation and Technology",Intellectual Property Office,14/11/2023,Overseas Patent Specifications,PDTM Directorate,Wiley,H57720231116trlsyzfqw,41.41,Not Applicable
"Department for Science, Innovation and Technology",Intellectual Property Office,13/11/2023,Office Stationery,"Rights, Policy & Enforcement Directorate",Amznmktplace,H57720231115fromsloee,49.96,Not Applicable
"Department for Science, Innovation and Technology",Intellectual Property Office,12/11/2023,Software Maintenance,PDTM Directorate,Ipo,H57720231115hvipntgqz,170.00,Not Applicable
"Department for Science, Innovation and Technology",Intellectual Property Office,13/11/2023,Career Development Services,PDTM Directorate,Ou Continuing Ed,H57720231115hwbdtanqb,350.00,Not Applicable
"Department for Science, Innovation and Technology",Intellectual Property Office,12/11/2023,Software Maintenance,PDTM Directorate,Ipo,H57720231115kgtncqcyq,50.00,Not Applicable
"Department for Science, Innovation and Technology",Intellectual Property Office,12/11/2023,Legal Consultancy,DDaT Directorate,Ipo,H57720231115qnmunqlyf,30.00,Not Applicable
"Department for Science, Innovation and Technology",Intellectual Property Office,12/11/2023,Placement Fees,Finance Directorate,Linkedin Ads 9612160244,H57720231114ajnckbjff,111.30,Not Applicable
"Department for Science, Innovation and Technology",Intellectual Property Office,10/11/2023,Placement Fees,Finance Directorate,Linkedin Ads 9606709244,H57720231114drxopkmhw,158.23,Not Applicable
"Department for Science, Innovation and Technology",Intellectual Property Office,11/11/2023,Legal Consultancy,DDaT Directorate,Ipo,H57720231114esndftcec,50.00,Not Applicable
"Department for Science, Innovation and Technology",Intellectual Property Office,11/11/2023,Legal Consultancy,DDaT Directorate,Ipo,H57720231114ivjfmigty,170.00,Not Applicable
"Department for Science, Innovation and Technology",Intellectual Property Office,11/11/2023,Legal Consultancy,DDaT Directorate,Ipo,H57720231114jygnwwngr,30.00,Not Applicable
"Department for Science, Innovation and Technology",Intellectual Property Office,10/11/2023,Network and infrastructure H/W,DDaT Directorate,Sp Ifixit Store Uk,H57720231114mcabbmsgk,279.98,Not Applicable
"Department for Science, Innovation and Technology",Intellectual Property Office,12/11/2023,Career Development Services,"Rights, Policy & Enforcement Directorate",Tesco Stores 2931,H57720231114ohitbkpfd,7.82,Not Applicable
"Department for Science, Innovation and Technology",Intellectual Property Office,11/11/2023,Legal Consultancy,DDaT Directorate,Ipo,H57720231114rxpkopbhu,50.00,Not Applicable
"Department for Science, Innovation and Technology",Intellectual Property Office,10/11/2023,Office Stationery,"Rights, Policy & Enforcement Directorate",Amznmktplace,H57720231114zxilwkjhb,23.90,Not Applicable
"Department for Science, Innovation and Technology",Intellectual Property Office,09/11/2023,Office Stationery,"Rights, Policy & Enforcement Directorate",Www.Screwfix.Com,H57720231111fcsdckwyf,131.56,Not Applicable
"Department for Science, Innovation and Technology",Intellectual Property Office,09/11/2023,Overseas Patent Specifications,PDTM Directorate,Informa UK Ecom Gb,H57720231111jjsebjokd,51.60,Not Applicable
"Department for Science, Innovation and Technology",Intellectual Property Office,09/11/2023,Career Development Services,Strategy Directorate,Cim,H57720231111myffsjqet,110.00,Not Applicable
"Department for Science, Innovation and Technology",Intellectual Property Office,09/11/2023,Office Stationery,"Rights, Policy & Enforcement Directorate",Ikea Ltd Shop Online,H57720231111orqbrkjhs,250.00,Not Applicable
"Department for Science, Innovation and Technology",Intellectual Property Office,08/11/2023,Overseas Patent Specifications,PDTM Directorate,Wiley,H57720231111rvmvipjgh,49.55,Not Applicable
"Department for Science, Innovation and Technology",Intellectual Property Office,08/11/2023,Perpetual Licences,DDaT Directorate,Heroku* Oct-87932690,H57720231110epwvzxkpx,4.20,Not Applicable
"Department for Science, Innovation and Technology",Intellectual Property Office,08/11/2023,Career Development Services,"Rights, Policy & Enforcement Directorate",Creative Review,H57720231110fasrwqgwj,828.00,Not Applicable
"Department for Science, Innovation and Technology",Intellectual Property Office,07/11/2023,Perpetual Licences,DDaT Directorate,Digicert,H57720231110fejhjdyxs,358.89,Not Applicable
"Department for Science, Innovation and Technology",Intellectual Property Office,08/11/2023,Career Development Services,"Rights, Policy & Enforcement Directorate",Amznmktplace,H57720231110frkstjywu,19.49,Not Applicable
"Department for Science, Innovation and Technology",Intellectual Property Office,08/11/2023,Seminars and Confereces,"Rights, Policy & Enforcement Directorate",Tesco-Stores 6459,H57720231110gwcdxyiho,25.60,Not Applicable
"Department for Science, Innovation and Technology",Intellectual Property Office,07/11/2023,Perpetual Licences,DDaT Directorate,Namesco,H57720231110ilqvyarej,679.01,Not Applicable
"Department for Science, Innovation and Technology",Intellectual Property Office,08/11/2023,Office Stationery,"Rights, Policy & Enforcement Directorate",Amznmktplace,H57720231110iwnwkoebf,95.43,Not Applicable
"Department for Science, Innovation and Technology",Intellectual Property Office,06/11/2023,Other,"Rights, Policy & Enforcement Directorate",British Red Cross Soci,H57720231110jdvpvbyji,-198.00,Not Applicable
"Department for Science, Innovation and Technology",Intellectual Property Office,08/11/2023,Perpetual Licences,DDaT Directorate,Heroku* Oct-88017939,H57720231110jphtxqklw,5.88,Not Applicable
"Department for Science, Innovation and Technology",Intellectual Property Office,07/11/2023,Network and infrastructure H/W,DDaT Directorate,Ebuyer (UK) Ltd,H57720231110nsbqqwdsz,754.87,Not Applicable
"Department for Science, Innovation and Technology",Intellectual Property Office,08/11/2023,Placement Fees,Finance Directorate,Linkedin Ads 9599389444,H57720231110ntefqcson,206.59,Not Applicable
"Department for Science, Innovation and Technology",Intellectual Property Office,08/11/2023,Entertainment,"Rights, Policy & Enforcement Directorate",Artivive.Com,H57720231110rrhiyjbtb,12.46,Not Applicable
"Department for Science, Innovation and Technology",Intellectual Property Office,08/11/2023,Office Stationery,"Rights, Policy & Enforcement Directorate",Pc Mobility Services Li,H57720231110ubsfvtbsk,278.40,Not Applicable
"Department for Science, Innovation and Technology",Intellectual Property Office,08/11/2023,Career Development Services,DDaT Directorate,Testing Exam Vue*microsof,H57720231110utxfwzyhs,41.40,Not Applicable
"Department for Science, Innovation and Technology",Intellectual Property Office,08/11/2023,Career Development Services,"Rights, Policy & Enforcement Directorate",Amznmktplace,H57720231110wekvaxcfe,60.79,Not Applicable
"Department for Science, Innovation and Technology",Intellectual Property Office,14/10/2023,Legal Consultancy,DDaT Directorate,Ipo,H57720231109eothvpide,-50.00,Not Applicable
"Department for Science, Innovation and Technology",Intellectual Property Office,14/10/2023,Legal Consultancy,DDaT Directorate,Ipo,H57720231109gvbgnvtoq,-50.00,Not Applicable
"Department for Science, Innovation and Technology",Intellectual Property Office,14/10/2023,Legal Consultancy,DDaT Directorate,Ipo,H57720231109gyolkxhot,-50.00,Not Applicable
"Department for Science, Innovation and Technology",Intellectual Property Office,07/11/2023,Minor Works-Goods,"Rights, Policy & Enforcement Directorate",Www.Screwfix.Com,H57720231109kqmsffnkj,129.67,Not Applicable
"Department for Science, Innovation and Technology",Intellectual Property Office,07/11/2023,Career Development Services,DDaT Directorate,Westminster Insight,H57720231109lxxsflrzs,409.32,Not Applicable
"Department for Science, Innovation and Technology",Intellectual Property Office,15/10/2023,Legal Consultancy,DDaT Directorate,Ipo,H57720231109mzptpsqra,-50.00,Not Applicable
"Department for Science, Innovation and Technology",Intellectual Property Office,07/11/2023,Network and infrastructure H/W,DDaT Directorate,Amznmktplace,H57720231109ornbksfda,55.99,Not Applicable
"Department for Science, Innovation and Technology",Intellectual Property Office,15/10/2023,Legal Consultancy,DDaT Directorate,Ipo,H57720231109ucdieraab,-170.00,Not Applicable
"Department for Science, Innovation and Technology",Intellectual Property Office,06/11/2023,Overseas Patent Specifications,PDTM Directorate,Wiley,H57720231109xwyqlthki,41.42,Not Applicable
"Department for Science, Innovation and Technology",Intellectual Property Office,07/11/2023,Office Stationery,"Rights, Policy & Enforcement Directorate",Amznmktplace,H57720231109yijwhlfjm,10.94,Not Applicable
"Department for Science, Innovation and Technology",Intellectual Property Office,06/11/2023,Other,"Rights, Policy & Enforcement Directorate",British Red Cross Soci,H57720231108bkbjptvud,198.00,Not Applicable
"Department for Science, Innovation and Technology",Intellectual Property Office,06/11/2023,Career Development Services,"Rights, Policy & Enforcement Directorate",Eb *book Launch Copyri,H57720231108bsclfggyy,35.00,Not Applicable
"Department for Science, Innovation and Technology",Intellectual Property Office,06/11/2023,Other,"Rights, Policy & Enforcement Directorate",British Red Cross Soci,H57720231108bydhsltxt,198.00,Not Applicable
"Department for Science, Innovation and Technology",Intellectual Property Office,06/11/2023,Other,"Rights, Policy & Enforcement Directorate",British Red Cross Soci,H57720231108dghdnafyf,198.00,Not Applicable
"Department for Science, Innovation and Technology",Intellectual Property Office,06/11/2023,Overseas Patent Specifications,PDTM Directorate,Www.Rsc.Org,H57720231108djleccgqu,42.50,Not Applicable
"Department for Science, Innovation and Technology",Intellectual Property Office,06/11/2023,Other,"Rights, Policy & Enforcement Directorate",British Red Cross Soci,H57720231108etoxxtenx,198.00,Not Applicable
"Department for Science, Innovation and Technology",Intellectual Property Office,06/11/2023,Other,"Rights, Policy & Enforcement Directorate",British Red Cross Soci,H57720231108kntqxadrm,198.00,Not Applicable
"Department for Science, Innovation and Technology",Intellectual Property Office,06/11/2023,Other,"Rights, Policy & Enforcement Directorate",British Red Cross Soci,H57720231108kvrmavbpc,198.00,Not Applicable
"Department for Science, Innovation and Technology",Intellectual Property Office,06/11/2023,Overseas Patent Specifications,PDTM Directorate,Www.Rsc.Org,H57720231108lhnzyfxjy,42.50,Not Applicable
"Department for Science, Innovation and Technology",Intellectual Property Office,06/11/2023,Overseas Patent Specifications,PDTM Directorate,Www.Rsc.Org,H57720231108mrhtqwqmq,42.50,Not Applicable
"Department for Science, Innovation and Technology",Intellectual Property Office,06/11/2023,Other,"Rights, Policy & Enforcement Directorate",British Red Cross Soci,H57720231108sdgisyxud,198.00,Not Applicable
"Department for Science, Innovation and Technology",Intellectual Property Office,06/11/2023,Career Development Services,"Rights, Policy & Enforcement Directorate",Asda Superstore 4928,H57720231108uicxwnbnl,11.11,Not Applicable
"Department for Science, Innovation and Technology",Intellectual Property Office,06/11/2023,Other,"Rights, Policy & Enforcement Directorate",British Red Cross Soci,H57720231108urmyufcfd,198.00,Not Applicable
"Department for Science, Innovation and Technology",Intellectual Property Office,06/11/2023,Office Stationery,"Rights, Policy & Enforcement Directorate",Alpha Electronics(Wales),H57720231108vgghphbfv,228.00,Not Applicable
"Department for Science, Innovation and Technology",Intellectual Property Office,06/11/2023,Office Stationery,"Rights, Policy & Enforcement Directorate",Amznmktplace,H57720231108xavghlvhf,23.99,Not Applicable
"Department for Science, Innovation and Technology",Intellectual Property Office,03/11/2023,Career Development Services,DDaT Directorate,Codecademy,H57720231107gmoksvwdm,239.88,Not Applicable
"Department for Science, Innovation and Technology",Intellectual Property Office,05/11/2023,Office Stationery,"Rights, Policy & Enforcement Directorate",Amznmktplace,H57720231107iytvgxqfy,31.99,Not Applicable
"Department for Science, Innovation and Technology",Intellectual Property Office,03/11/2023,Overseas Patent Specifications,PDTM Directorate,Wiley,H57720231107kqjreobcj,41.59,Not Applicable
"Department for Science, Innovation and Technology",Intellectual Property Office,03/11/2023,Minor Works-Goods,"Rights, Policy & Enforcement Directorate",Howe Tools Ltd,H57720231107lqxjumnri,518.00,Not Applicable
"Department for Science, Innovation and Technology",Intellectual Property Office,05/11/2023,Placement Fees,Finance Directorate,Linkedin Ads 9590606834,H57720231107wostdpqcr,120.10,Not Applicable
"Department for Science, Innovation and Technology",Intellectual Property Office,02/11/2023,Office Stationery,"Rights, Policy & Enforcement Directorate",Amznmktplace,H57720231104bjffjdief,105.55,Not Applicable
"Department for Science, Innovation and Technology",Intellectual Property Office,02/11/2023,Career Development Services,DDaT Directorate,It Governance Ltd,H57720231104nncpnbdmh,504.00,Not Applicable
"Department for Science, Innovation and Technology",Intellectual Property Office,02/11/2023,Office Stationery,"Rights, Policy & Enforcement Directorate",Amznmktplace,H57720231104npbuhyfgn,47.82,Not Applicable
"Department for Science, Innovation and Technology",Intellectual Property Office,02/11/2023,Office Stationery,"Rights, Policy & Enforcement Directorate",Amznmktplace,H57720231104oufrldevx,91.20,Not Applicable
"Department for Science, Innovation and Technology",Intellectual Property Office,02/11/2023,Office Stationery,"Rights, Policy & Enforcement Directorate",Sedo,H57720231104vhayjwlcs,249.00,Not Applicable
"Department for Science, Innovation and Technology",Intellectual Property Office,14/10/2023,Legal Consultancy,DDaT Directorate,Ipo,H57720231104yoolgjrux,-170.00,Not Applicable
"Department for Science, Innovation and Technology",Intellectual Property Office,01/11/2023,Office Stationery,"Rights, Policy & Enforcement Directorate",Www.Officesupplies.Org,H57720231103dkfewkfji,43.68,Not Applicable
"Department for Science, Innovation and Technology",Intellectual Property Office,01/11/2023,Career Development Services,"Rights, Policy & Enforcement Directorate",Armada,H57720231103elkiblrlu,714.00,Not Applicable
"Department for Science, Innovation and Technology",Intellectual Property Office,01/11/2023,Office Stationery,"Rights, Policy & Enforcement Directorate",Www.Officesupplies.Org,H57720231103mcbtnvlxq,21.84,Not Applicable
"Department for Science, Innovation and Technology",Intellectual Property Office,01/11/2023,Office Stationery,"Rights, Policy & Enforcement Directorate",Amazon.Co.Uk,H57720231103rifsfldhr,54.98,Not Applicable
"Department for Science, Innovation and Technology",Intellectual Property Office,01/11/2023,Career Development Services,PDTM Directorate,R/society Of Chemi,H57720231103ttlpiurvm,600.00,Not Applicable
"Department for Science, Innovation and Technology",Intellectual Property Office,31/10/2023,Legal Consultancy,DDaT Directorate,Ipo,H57720231103vzwsilwwm,220.00,Not Applicable
"Department for Science, Innovation and Technology",Intellectual Property Office,01/11/2023,Office Stationery,"Rights, Policy & Enforcement Directorate",Www.Argos.Co.Uk,H57720231103wlbikzhuh,86.95,Not Applicable
"Department for Science, Innovation and Technology",Intellectual Property Office,01/11/2023,Minor Works-Goods,"Rights, Policy & Enforcement Directorate",Armada,H57720231103xqumdtsgi,714.00,Not Applicable
"Department for Science, Innovation and Technology",Intellectual Property Office,31/10/2023,Entertainment,"Rights, Policy & Enforcement Directorate",Amznmktplace,H57720231102cktoxjrfp,9.49,Not Applicable
"Department for Science, Innovation and Technology",Intellectual Property Office,30/10/2023,Overseas Patent Specifications,PDTM Directorate,Spandidospu,H57720231102pmqcykqgv,30.00,Not Applicable
"Department for Science, Innovation and Technology",Intellectual Property Office,31/10/2023,Career Development Services,DDaT Directorate,It Governance Ltd,H57720231102sehogihsd,714.00,Not Applicable
"Department for Science, Innovation and Technology",Intellectual Property Office,31/10/2023,Career Development Services,"Rights, Policy & Enforcement Directorate",Asda Superstore 4928,H57720231102vhirsyruc,11.60,Not Applicable
"Department for Science, Innovation and Technology",Intellectual Property Office,31/10/2023,Office Stationery,"Rights, Policy & Enforcement Directorate",Ppe Workwear Direct,H57720231102wxdsvfwth,79.15,Not Applicable
